Cogmind - Beta 11.1 @@@ ROGUE MODE // 2022.10.16 @ 23:20:39 Player: Pogmind Result: Establishing 0b11! Performance ------------- Evolutions (9) 4500 Regions Visited (36) 7200 Robots Destroyed (532) 2660 Value Destroyed (19449) 19449 Prototype IDs (303) 6060 Alien Tech Used (7) 1400 Bonus (45833) 45833 TOTAL SCORE: 87102 Bonus ------- High Alert Combat Kills 239 Follower Combat Kills 1955 Network Hubs Disabled 400 Aligned with FarCom 300 Met Imprinter 300 Met Zhirov 300 Met Warlord at Base 500 MAIN.C Attacked Warlord 500 Found Hidden Lab 3000 Destroyed MAIN.C Guards 500 Met MAIN.C 5000 Destroyed MAIN.C Shell 5000 Destroyed MAIN.C 10000 Met Warlord at Command 2000 Met Architect 300 Destroyed A3 800 Destroyed A2 1000 Destroyed Architect 15000 Win 3000 Friendly Fire -4261 Cogmind --------- Core Integrity 217/1600 Matter 290/300 Energy 88/100 System Corruption 1% Temperature Cool (24) Movement Flying (20) Location 0b11 Command Parts ------- > --- POWER (2) -------- (None) > --- PROPULSION (9) --- Biomechanical Wings Biomechanical Wings Cooled Impulse Thruster Cooled Q-thruster > --- UTILITY (11) ----- Experimental Melee Analysis Suite Experimental Melee Analysis Suite Experimental Core Analyzer Femtoactuators > --- WEAPON (4) ------- Nanosword Nanosword > --- INVENTORY (5) ---- Zero-point Reactor Peak State ------------ > --- POWER ------------ Zero-point Reactor Zero-point Reactor > --- PROPULSION ------- Biomechanical Wings Biomechanical Wings Biomechanical Wings Biomechanical Wings Biomechanical Wings Biomechanical Wings Cooled Impulse Thruster Cooled Impulse Thruster Cooled Impulse Thruster > --- UTILITY ---------- Experimental Melee Analysis Suite Experimental Melee Analysis Suite Experimental Core Analyzer Experimental Armor Integrity Analyzer Femtoactuators Experimental Actuator Array Advanced Force Booster Experimental Reaction Control System Experimental Phase Shifter Experimental Propulsion Shielding Powered Armor > --- WEAPON ----------- Nanosword Nanosword Nanosword Nanosword > --- INVENTORY -------- Biomechanical Wings Superbattery Experimental Utility Shielding Experimental Utility Shielding Transdimensional Reconstructor [Rating: 218] Favorites ----------- Power Improved Ion Engine Engine Improved Ion Engine Power Core Micro Fission Core Reactor Zero-point Reactor Propulsion Biomechanical Wings Treads Armored Treads Leg Myomer Leg Wheel Wheel Flight Unit Biomechanical Wings Utility Huge Storage Unit Device Advanced Heat Sink Storage Huge Storage Unit Processor Improved Signal Interpreter Hackware Experimental Hacking Suite Protection Experimental Propulsion Shielding Weapon Nanosword Energy Gun Heavy Particle Gun Energy Cannon Beam Cannon Ballistic Gun Assault Rifle Ballistic Cannon Advanced Assault Cannon Launcher Heavy Rocket Launcher Special Weapon Plasma Cutter Impact Weapon Hammer Slashing Weapon Nanosword Piercing Weapon CR-A16's Behemoth Slayer Special Melee Weapon Improved Datajack Build | -11 -10 -10 -9 -9 -9 -8 -8 -7 -7 -7 -7 -6 -6 -6 -6 -6 -6 -5 -5 -5 -5 -4 -4 -4 -4 -4 -4 -4 -3 -3 -3 -3 -2 -1 -1 -1 ------- Run | Scr Mat Min Mat Min Exi Min Mat Fac Low Low Zio Pro Fac Ext Cet Arc Hub Fac Upp Upp Zhi Pro Fac Was Fac Upp Upp War Pro Res Arm Lab Res Acc Com Ac0 Slots Evolved 18 | . . . 2 . . . 2 2 . . . . 2 . . . . 2 . . . . 2 . . . . . . 2 . . 2 2 . . Power 1 | . . . . . . . . . . . . . . . . . . . . . . . . . . . . . . 1 . . . . . . Propulsion 7 | . . . 1 . . . 1 . . . . . . . . . . 2 . . . . . . . . . . . 1 . . 2 . . . Utility 8 | . . . 1 . . . 1 2 . . . . 2 . . . . . . . . . 2 . . . . . . . . . . . . . Weapon 2 | . . . . . . . . . . . . . . . . . . . . . . . . . . . . . . . . . . 2 . . Parts Attached 1017 | 7 15 . 57 8 2 5 86 58 13 22 5 11 40 53 14 25 35 103 9 7 9 11 46 . 66 7 11 17 10 78 12 14 15 39 88 19 Power 57 | 1 2 . 3 . . 2 4 1 . . . 1 . 3 1 1 1 5 . . 2 . 2 . 4 . . 2 . 7 3 1 3 5 2 1 Engine 20 | 1 2 . 2 . . 2 3 1 . . . 1 . 3 1 1 1 . . . . . . . . . . 1 . 1 . . . . . . Core 15 | . . . 1 . . . 1 . . . . . . . . . . 4 . . 1 . 2 . 4 . . 1 . 1 . . . . . . Reactor 22 | . . . . . . . . . . . . . . . . . . 1 . . 1 . . . . . . . . 5 3 1 3 5 2 1 Propulsion 169 | 2 4 . 16 . . . 14 3 . . . . 8 18 4 3 2 22 . . 3 . . . 4 . . 4 2 21 . 5 3 8 19 4 Treads 65 | 2 4 . 14 . . . 13 3 . . . . 8 . 1 3 2 15 . . . . . . . . . . . . . . . . . . Leg 24 | . . . . . . . . . . . . . . 18 3 . . . . . 2 . . . . . . 1 . . . . . . . . Wheel 2 | . . . 2 . . . . . . . . . . . . . . . . . . . . . . . . . . . . . . . . . Hover . | . . . . . . . . . . . . . . . . . . . . . . . . . . . . . . . . . . . . . Flight 78 | . . . . . . . 1 . . . . . . . . . . 7 . . 1 . . . 4 . . 3 2 21 . 5 3 8 19 4 Utility 481 | 2 3 . 15 2 . 1 30 23 6 17 . 5 23 14 5 13 17 50 3 4 3 4 39 . 54 5 4 5 3 36 7 4 7 20 43 14 Device 226 | 1 1 . 5 1 . . 11 11 5 14 . 5 16 11 4 6 6 23 3 3 . 3 10 . 27 3 2 3 2 17 4 1 3 6 13 6 Storage 23 | 1 2 . 3 . . . . . . . . . . . . . . 5 . . 1 . . . . . . . . . . . . 1 8 2 Processor 20 | . . . 1 . . . 2 . 1 . . . 1 1 . . 2 2 . . . . 1 . 1 . . 1 . 1 . . 1 2 3 . Hackware 60 | . . . . . . . 3 5 . . . . 2 . . 3 2 9 . . . . 13 . 9 . . 1 . 3 2 1 . 4 3 . Protection 152 | . . . 6 1 . 1 14 7 . 3 . . 4 2 1 4 7 11 . 1 2 1 15 . 17 2 2 . 1 15 1 2 3 7 16 6 Artifact . | . . . . . . . . . . . . . . . . . . . . . . . . . . . . . . . . . . . . . Weapon 310 | 2 6 . 23 6 2 2 38 31 7 5 5 5 9 18 4 8 15 26 6 3 1 7 5 . 4 2 7 6 5 14 2 4 2 6 24 . Energy Gun 34 | 2 . . 2 . . . 14 2 1 . . . . 5 2 1 . 2 . . . . . . . . . 3 . . . . . . . . Energy Cannon 48 | . 1 . 15 3 2 1 11 . . . . . 4 2 . . . 1 . . . . . . . . . . 1 4 1 1 . 1 . . Ballistic Gun 14 | . 3 . . . . . 3 . . . . 1 . . . 3 2 . . . . . . . . . 1 . . . . . . . 1 . Ballistic Cannon 58 | . . . . . . . 3 12 3 3 4 2 3 4 . . 8 11 . . . . . . . . 1 . . . . . . . 4 . Launcher 44 | . 2 . 1 2 . 1 3 5 3 2 . 1 1 2 1 . . 4 2 1 . 3 2 . 1 1 . . 1 1 . . . . 4 . Special Weapon 8 | . . . 4 . . . 2 . . . . . . . . . . . . . . . . . . . 1 . . . . 1 . . . . Impact Weapon 15 | . . . 1 1 . . 2 9 . . 1 . 1 . . . . . . . . . . . . . . . . . . . . . . . Slashing Weapon 66 | . . . . . . . . 2 . . . . . 3 . 2 5 7 2 . 1 4 1 . 3 1 4 2 1 7 1 2 1 4 13 . Piercing Weapon 20 | . . . . . . . . . . . . 1 . 2 1 1 . 1 1 2 . . 2 . . . . 1 2 2 . . 1 1 2 . Special Melee Weapon 3 | . . . . . . . . 1 . . . . . . . 1 . . 1 . . . . . . . . . . . . . . . . . Unidentified Prototypes 38 | . . . 4 1 . . 3 1 . . . . 1 . 2 1 1 3 1 . 4 . . . . . . 7 . 1 . 6 . . 1 1 Parts Lost 107 | . 2 . 13 . . 1 17 . . 1 . . 16 14 1 1 6 6 . . . 1 . . 2 . . . . 1 . . . . . 25 Power 11 | . 1 . 2 . . . 1 . . . . . . 2 . . . 2 . . . . . . . . . . . 1 . . . . . 2 Propulsion 34 | . . . 6 . . . 7 . . . . . 7 5 . . . 2 . . . . . . . . . . . . . . . . . 7 Utility 45 | . . . 3 . . 1 6 . . 1 . . 7 5 1 . 4 1 . . . 1 . . 1 . . . . . . . . . . 14 Weapon 17 | . 1 . 2 . . . 3 . . . . . 2 2 . 1 2 1 . . . . . . 1 . . . . . . . . . . 2 Highest Loss Streak 25 | . 2 . 5 . . 1 3 . . 1 . . 6 7 1 1 2 2 . . . 1 . . 1 . . . . 1 . . . . . 25 To Critical Strikes 1 | . . . . . . . . . . . . . . . . . . 1 . . . . . . . . . . . . . . . . . . Average Slot Usage (%) 96 | . 99 100 98 100 82 100 96 99 100 99 98 100 96 97 99 87 88 89 100 100 98 96 98 100 97 100 99 99 100 96 94 86 97 91 99 95 Engine 5 | . 13 14 9 11 11 11 8 6 7 7 7 7 6 5 5 6 6 1 . . . . . . . . . . . . . . . . . . Treads 20 | . 27 28 31 33 33 33 32 29 30 30 30 30 25 2 . 13 20 25 . . . . . . . . . . . . . . . . . . Leg 1 | . . . . . . . . . . . . . . 22 26 7 . . . . . . . . . . . . . . . . . . . . Flight 9 | . . . . . . . . . . . . . . . . . . 3 35 35 34 35 31 31 31 31 31 31 31 33 33 31 37 33 33 32 Device 9 | . 14 14 12 11 11 11 9 6 7 13 15 15 19 24 31 12 2 6 5 4 5 4 . . 2 4 4 4 5 3 3 1 2 2 9 12 Storage 6 | . 14 14 11 11 11 11 9 7 7 7 7 7 6 6 6 6 6 5 5 5 5 5 5 5 5 5 5 5 5 4 4 4 4 3 1 . Processor 3 | . . . . . . . . . 6 7 7 7 . 4 6 2 . 1 5 5 5 5 5 5 4 5 5 5 4 . . . 2 . 14 17 Hackware 11 | . . . . . . . 1 15 15 8 7 7 15 7 . 6 27 25 17 17 17 13 29 31 28 26 26 26 26 28 28 28 25 21 2 . Protection 9 | . . . 9 10 11 11 15 13 7 6 7 7 8 7 7 17 13 3 11 11 10 11 9 10 8 10 10 10 10 8 9 9 10 10 12 9 Energy Gun 1 | . 12 . . . . . 3 . . . . . . 4 10 . . . . . . . . . . . . . . . . . . . . . Energy Cannon 3 | . 5 14 15 21 5 21 7 . . . . . 5 1 . . . . . . . . . . . . . . . . . . . . . . Ballistic Cannon 3 | . . . . . . . . 11 14 14 11 14 7 . . . 6 3 . . . . . . . . . . . . . . . . . . Slashing Weapon 2 | . . . . . . . . . . . . . . 2 . 2 2 2 5 5 4 4 5 5 4 9 9 9 9 8 9 4 7 7 14 14 Naked Turns . | . . . . . . . . . . . . . . . . . . . . . . . . . . . . . . . . . . . . . Heaviest Build 137 | 14 51 51 97 101 98 101 111 119 113 115 113 123 129 122 121 137 123 123 42 43 36 35 34 32 36 43 36 34 36 49 37 58 58 55 135 60 Greatest Support 184 | 40 40 40 60 60 60 60 80 80 80 80 80 80 90 90 95 120 120 184 36 36 36 36 36 36 37 36 36 38 40 50 42 45 66 66 66 66 Greatest Overweight (x) 6 | . 2 1 2 1 1 1 1 1 1 1 1 1 2 6 1 1 1 1 1 1 1 . 2 . . 1 . 2 . 2 . 1 . 2 2 1 Average Overweight (x) . | . . 1 . 1 1 1 1 1 1 1 1 1 1 1 1 . . . . . . . . . . . . . . . . . . . . . Largest Inventory Capacity 25 | 8 20 20 25 25 25 25 25 25 25 25 25 25 25 25 25 25 25 25 15 15 15 15 15 15 15 15 15 15 15 15 15 15 15 15 25 5 Average Capacity 21 | 7 16 20 22 25 25 25 25 25 25 25 25 25 25 25 25 25 25 23 15 15 15 15 15 15 15 15 15 15 15 15 15 15 15 15 11 5 Most Carried 25 | 4 14 20 25 25 25 25 25 25 25 25 25 25 25 25 25 25 25 25 15 15 15 15 15 15 15 15 15 15 15 15 15 15 15 15 22 5 Average Carried 20 | 3 10 17 21 24 23 24 23 24 24 24 24 24 23 24 24 24 24 22 14 15 14 15 14 15 13 15 15 14 14 14 14 13 14 14 8 4 Final Capacity 25 | 8 20 20 25 25 25 25 25 25 25 25 25 25 25 25 25 25 25 15 15 15 15 15 15 15 15 15 15 15 15 15 15 15 15 15 25 5 Final Carried 25 | 4 13 20 25 25 25 25 25 25 25 25 25 25 25 25 25 25 25 15 15 15 15 15 15 15 15 15 15 15 15 15 15 15 15 15 17 1 Class Distribution -------------------- 31% | Scavenger-Mutant 19% | Mutant 16% | Hacker-Mutant 15% | Wizard-Sprinter 6% | Machinist-Sprinter 5% | Wizard-Mutant Dominant Class ---------------- Mutant | -10/Materials Mutant | -10/Mines Scavenger-Mutant | -9/Materials Scavenger-Mutant | -9/Mines Scavenger-Mutant | -9/Exiles Scavenger-Mutant | -8/Mines Scavenger-Mutant | -8/Materials Hacker-Mutant | -7/Factory Hacker-Mutant | -7/Lower Caves Mutant | -7/Lower Caves Mutant | -7/Zion Mutant | -6/Proximity Caves Hacker-Mutant | -6/Factory Scavenger-Mutant | -6/Extension Scavenger-Mutant | -6/Cetus Scavenger-Mutant | -6/Archives Scavenger-Mutant | -6/Hub_04(d) Wizard-Mutant | -5/Factory Hacker-Sprinter | -5/Upper Caves Hacker-Sprinter | -5/Upper Caves Hacker-Sprinter | -5/Zhirov Machinist-Sprinter | -4/Proximity Caves Wizard-Sprinter | -4/Factory Wizard-Sprinter | -4/Waste Wizard-Sprinter | -4/Factory Wizard-Sprinter | -4/Upper Caves Wizard-Sprinter | -4/Upper Caves Wizard-Sprinter | -4/Warlord Wizard-Sprinter | -3/Proximity Caves Wizard-Sprinter | -3/Research Wizard-Sprinter | -3/Armory Wizard-Sprinter | -3/Lab Wizard-Sprinter | -2/Research Wizard-Sprinter | -1/Access Machinist-Sprinter | -1/Command Machinist-Sprinter | -1/Access_0 Resources | -11 -10 -10 -9 -9 -9 -8 -8 -7 -7 -7 -7 -6 -6 -6 -6 -6 -6 -5 -5 -5 -5 -4 -4 -4 -4 -4 -4 -4 -3 -3 -3 -3 -2 -1 -1 -1 ----------- Run | Scr Mat Min Mat Min Exi Min Mat Fac Low Low Zio Pro Fac Ext Cet Arc Hub Fac Upp Upp Zhi Pro Fac Was Fac Upp Upp War Pro Res Arm Lab Res Acc Com Ac0 Matter Collected 15427 | 260 341 39 999 218 . 295 851 1009 601 410 68 116 1101 806 183 277 1270 2074 155 115 100 322 413 . 842 145 110 170 125 830 150 . 197 200 560 75 Remotely 1233 | . . . . . . . . . . 154 . . 387 . 98 . . 594 . . . . . . . . . . . . . . . . . . Salvage Created 22954 | 163 452 114 1725 131 . 361 1935 1141 328 126 . 49 1075 1146 38 358 1815 2641 113 213 205 123 583 . 1084 110 . . 153 1530 122 . 697 1123 2872 428 Parts 1195 | 12 28 2 115 12 . 17 108 52 7 8 . 9 52 62 6 23 83 137 11 6 4 6 43 . 44 3 . . 11 87 12 . 26 69 99 41 Haulers Intercepted 24 | . . . 6 . . . 2 . . . . . . . . . . 3 . . . . . . 1 . . . . 5 . . 4 3 . . Recyclers Shooed 11 | . . . 2 . . . 1 2 . . . . 1 2 . . 1 1 . . . . . . 1 . . . . . . . . . . . Parts Field Recycled . | . . . . . . . . . . . . . . . . . . . . . . . . . . . . . . . . . . . . . Retrieved Matter . | . . . . . . . . . . . . . . . . . . . . . . . . . . . . . . . . . . . . . Parts Self-Destructed 69 | . . . . . . . . . 11 8 . 18 . . . . . . 9 6 2 5 . . . 1 . . 9 . . . . . . . Prevented 15 | . . . . . . . . . . 1 . . . . . . . . 2 2 . 3 . . . . 3 . 4 . . . . . . . Kills | -11 -10 -10 -9 -9 -9 -8 -8 -7 -7 -7 -7 -6 -6 -6 -6 -6 -6 -5 -5 -5 -5 -4 -4 -4 -4 -4 -4 -4 -3 -3 -3 -3 -2 -1 -1 -1 ------- Run | Scr Mat Min Mat Min Exi Min Mat Fac Low Low Zio Pro Fac Ext Cet Arc Hub Fac Upp Upp Zhi Pro Fac Was Fac Upp Upp War Pro Res Arm Lab Res Acc Com Ac0 Combat Hostiles Destroyed 335 | . 14 . 24 8 . 9 37 14 10 9 . 4 28 20 4 1 33 47 4 5 . 7 12 . 2 5 . . 2 9 2 . 3 4 14 4 Melee 45 | . . . . . . . . . . . . . . 12 . . 1 5 1 1 . . 1 . 1 . . . 1 2 . . 2 2 12 4 Guns 30 | . 6 . 3 . . . 12 . . . . . . 2 . 1 5 1 . . . . . . . . . . . . . . . . . . Cannons 124 | . 1 . 18 . . 5 14 10 3 2 . 1 21 2 . . 27 20 . . . . . . . . . . . . . . . . . . AOE 114 | . 6 . . 8 . 3 8 4 7 7 . 3 5 3 4 . . 20 3 4 . 7 10 . . 5 . . . 5 2 . . . . . Classes Destroyed 21 | 2 5 . 4 . . . . 2 . . . . 2 1 . . 1 1 1 . . 1 . . . . . . . . . . . . 1 . Worker 36 | . 1 . 5 . . 1 5 8 . . . . 1 . . . 9 2 . . . . . . 1 . . . . 1 . . 1 . 1 . Builder 16 | . . . . . . . . 1 . . . . 2 1 . . 1 7 . . . . . . . . . . . 1 . . 1 2 . . Tunneler 10 | 4 1 . 1 . . 1 . 1 . . . . . . . . 1 1 . . . . . . . . . . . . . . . . . . Hauler 24 | . . . 6 . . . 2 . . . . . . . . . . 3 . . . . . . 1 . . . . 5 . . 4 3 . . Recycler 28 | 1 . . . 1 . . 2 8 . . . . . . . . 1 5 . . . . . . 5 . . . . 2 . . . . 3 . Minesweeper 3 | . . . . . . . . . . . . . . . . . . . 2 . . 1 . . . . . . . . . . . . . . Mechanic 2 | . . . . . . . . . . . . . . . . . . 2 . . . . . . . . . . . . . . . . . . Operator 23 | . 1 . 3 . . . 3 3 . . . . . . . 8 . . . . . . . . . . . . . 1 1 . . 2 1 . Watcher 52 | . 3 . 5 . . . 5 1 . . . . 4 3 . . 3 4 . . . . 4 . 4 . . . . 6 1 . 1 5 3 . Swarmer 105 | . 6 . . 8 . 3 11 4 3 4 . 4 7 4 4 . . 16 4 4 . 4 7 . . 5 . . . 5 2 . . . . . Grunt 105 | . 8 . 12 . . 5 18 2 6 4 . . 9 7 . . 14 13 . . . 3 2 . . . . . 1 . . . . 1 . . Brawler 1 | . . . 1 . . . . . . . . . . . . . . . . . . . . . . . . . . . . . . . . . Duelist 3 | . . . 1 . . 1 . . . . . . . . . . . 1 . . . . . . . . . . . . . . . . . . Sentry 41 | . . . 10 . . . 8 3 1 . . . 3 5 . 1 6 2 . . . . . . . . . . . 1 . . 1 . . . Specialist 2 | . . . . . . . . . . . . . . . . . 2 . . . . . . . . . . . . . . . . . . . Hunter 17 | . . . . . . . . . . . . . 5 . . . 7 1 . . . . 1 . . . . . . . . . 1 . 2 . Programmer 37 | . . . . . . . . 5 . 1 . . 3 . . . 3 14 . 1 . . 2 . 1 . . . . 1 . . . 1 5 . Heavy 2 | . . . . . . . . . . . . . 1 . . . 1 . . . . . . . . . . . . . . . . . . . Behemoth 11 | . . . . . . . . . . . . . . 2 . . . . . . . . . . 1 . . . 1 2 . . 1 2 2 . Enhanced Grunt 1 | . . . . . . . . . . . . . . . . . . . . . . . . . . . . . . . . . . . . 1 Combat Programmer 2 | . . . . . . . . . . . . . . . . . . . . . . . . . . . . . . . . . . . 2 . Alpha 7 1 | . . . . . . . . . . . . . . . . . . . . . . . . . . . . . . . . . . . 1 . Packrat 1 | . . . . . . . . . 1 . . . . . . . . . . . . . . . . . . . . . . . . . . . Samaritan 1 | . . . . . . . . . . . . . . . . . . . . . . 1 . . . . . . . . . . . . . . Thug 3 | . . . . . . . . . 1 . . . . 2 . . . . . . . . . . . . . . . . . . . . . . Best Kill Streak 9 | 3 3 . 4 4 . 4 4 9 7 4 . 4 7 5 4 2 6 9 6 4 . 4 4 . 1 5 . . 1 6 2 . 6 3 3 4 Combat Bots Only 7 | . 3 . 3 4 . 3 4 4 7 4 . 4 7 4 4 1 4 5 4 4 . 4 4 . 1 5 . . 1 5 2 . 2 1 3 4 Max Kills in Single Turn 9 | 1 2 1 2 4 . 2 3 5 5 3 . 3 2 3 2 1 2 9 3 4 . 3 4 . 1 3 . . 1 2 2 . 1 1 1 1 Gunslinging . | . . . . . . . . . . . . . . . . . . . . . . . . . . . . . . . . . . . . . Exploded 5 | . 2 . . 4 . 2 3 3 5 3 . 3 1 2 2 . . 4 3 4 . 3 4 . . 3 . . . 2 2 . . . . . Melee 1 | . . . . . . . . . . . . . . 1 . . 1 1 1 1 . . 1 . 1 . . . 1 1 . . 1 1 1 1 Uniques/NPCs Destroyed 7 | . . 1 . . . . . . . . . . . . . . . . . . . . . . . . . . . . . . . . 3 3 YI-UF0 (-10/Mines) MAIN.C Shell (-1/Command) ZY-L1N (-1/Command) MAIN.C (-1/Command) Architect (-1/Access_0) A3 (-1/Access_0) A2 (-1/Access_0) Combat | -11 -10 -10 -9 -9 -9 -8 -8 -7 -7 -7 -7 -6 -6 -6 -6 -6 -6 -5 -5 -5 -5 -4 -4 -4 -4 -4 -4 -4 -3 -3 -3 -3 -2 -1 -1 -1 -------- Run | Scr Mat Min Mat Min Exi Min Mat Fac Low Low Zio Pro Fac Ext Cet Arc Hub Fac Upp Upp Zhi Pro Fac Was Fac Upp Upp War Pro Res Arm Lab Res Acc Com Ac0 Damage Taken 25186 | . 708 32 1273 43 . 319 2144 568 223 437 . 134 3535 2123 120 322 2691 3788 112 38 . 45 327 . 238 61 103 . 77 718 48 . 103 145 479 4232 Core 3271 | . 163 . 90 . . 13 164 12 6 19 . . 237 320 56 20 172 238 . . . 18 150 . 77 . 23 . 18 178 . . 55 . 78 1164 Absorbed by Shields 120 | . . . . . . . . . . . . . . 40 16 64 . . . . . . . . . . . . . . . . . . . . Reduced by Siege Mode 258 | . . . . . . . . . . . . . . . . . 77 181 . . . . . . . . . . . . . . . . . . Redirected to Shielding 1192 | . . . . . . . . . . . . . . . . . . . 8 . . 17 94 . 81 . 56 . 52 46 42 . . 53 175 568 Regen/Repaired (Parts) 2887 | . 125 . . . . . 120 . . . . . . . . . . 1277 . . . . 192 . 195 . . . . 413 . . 48 346 171 . Core Remaining (%) 65 | 100 . 34 . . . 74 70 . . . . 94 . . . . 5 . . . . 74 . . . . . . 76 . . 79 96 . . 13 Volleys Fired 840 | 16 67 13 106 3 . 20 142 40 22 16 . 2 85 22 2 4 104 137 2 1 . 13 . . . 3 . 1 1 10 1 . . . 7 . Largest 2 | 2 2 2 2 1 . 2 2 2 2 2 . 2 2 2 1 2 2 1 1 1 . 1 . . . 1 . 1 1 1 1 . . . 1 . Hottest 210 | 90 90 80 120 70 . 128 128 96 96 96 . 96 210 160 39 115 96 60 46 46 . 46 . . . 46 . 40 46 105 105 . . . 66 . Shots Fired 1345 | 32 126 26 189 5 . 40 243 74 36 24 . 3 163 38 2 8 158 139 2 1 . 13 . . . 3 . 1 1 10 1 . . . 7 . Gun 372 | 32 107 13 30 . . . 89 . . . . . . 18 . 8 43 31 . . . . . . . . . 1 . . . . . . . . Cannon 843 | . 13 13 136 2 . 38 124 72 30 15 . 2 157 17 . . 115 95 . . . . . . . . . . . 7 1 . . . 6 . Launcher 83 | . 6 . . 3 . 2 6 2 6 9 . 1 6 3 2 . . 13 2 1 . 13 . . . 3 . . 1 3 . . . . 1 . Special 47 | . . . 23 . . . 24 . . . . . . . . . . . . . . . . . . . . . . . . . . . . . Kinetic 593 | . 50 13 30 . . . 6 72 30 15 . 2 112 . . 4 158 95 . . . . . . . . . . . . . . . . 6 . Thermal 627 | 32 70 13 159 2 . 38 190 . . . . . 45 35 . 4 . 31 . . . . . . . . . . . 7 1 . . . . . Explosive 83 | . 6 . . 3 . 2 6 2 6 9 . 1 6 3 2 . . 13 2 1 . 13 . . . 3 . . 1 3 . . . . 1 . Electromagnetic 41 | . . . . . . . 41 . . . . . . . . . . . . . . . . . . . . . . . . . . . . . Entropic 1 | . . . . . . . . . . . . . . . . . . . . . . . . . . . . 1 . . . . . . . . Robot Hit Streak 33 | 8 10 15 22 5 . 12 13 15 8 3 . 5 15 10 . 9 33 10 . . . 3 . . . 5 . . . 2 . . . . 1 . Robot Miss Streak 9 | 4 4 2 4 4 . 2 5 3 2 5 . . 9 2 . 1 2 3 . . . 1 . . . . . . . 1 . . . . 1 . Penetration Max 1 | . . . . . . . . . . . . . . . . . 1 1 . . . . . . . . . . . . . . . . . . Secondary Targets 3 | . . . . . . . 3 . . . . . . . . . . . . . . . . . . . . . . . . . . . . . Max Gunslinging Chain 1 | . . . . . . . 1 . . . . . . . . . . . . . . . . . . . . . . . . . . . . . Shots Hit Robots 1314 | 20 83 20 126 3 . 30 167 57 20 9 . 2 101 76 2 22 145 132 3 5 4 7 15 . 24 3 . . 2 33 3 . 25 29 95 51 Core Hits 698 | 6 32 4 56 10 . 16 84 35 19 15 . 4 48 41 6 12 61 70 7 3 2 13 29 . 9 6 . . 1 22 6 . 7 12 38 24 Critical Kills 8 | . . 1 2 1 . . 1 . . . . . . 1 . . 2 . . . . . . . . . . . . . . . . . . . Critical Parts Destroyed 4 | . . . . . . . . 2 . . . . . . . . 2 . . . . . . . . . . . . . . . . . . . Critical Strikes 69 | . 4 1 2 1 . . 1 2 1 1 . . 4 4 1 . 14 16 . . . . 2 . 1 . . . . 2 . . 2 2 4 4 Burn 5 | . 4 . . . . . . . . . . . . . . . . 1 . . . . . . . . . . . . . . . . . . Meltdown 5 | . . 1 2 . . . 1 . . . . . . 1 . . . . . . . . . . . . . . . . . . . . . . Destroy 4 | . . . . . . . . . . . . . . . . . 4 . . . . . . . . . . . . . . . . . . . Blast 27 | . . . . . . . . . 1 1 . . 4 . . . 10 11 . . . . . . . . . . . . . . . . . . Smash 3 | . . . . 1 . . . 2 . . . . . . . . . . . . . . . . . . . . . . . . . . . . Sever 16 | . . . . . . . . . . . . . . . . . . 3 . . . . . . . . . . . 1 . . 2 2 4 4 Impale 9 | . . . . . . . . . . . . . . 3 1 . . 1 . . . . 2 . 1 . . . . 1 . . . . . . Melee Attacks 1229 | . . . 2 1 . . 9 38 . . 1 . 2 65 2 15 32 103 10 15 5 4 146 . 122 7 2 10 18 123 38 4 46 145 195 69 Impact 50 | . . . 2 1 . . 9 35 . . 1 . 2 . . . . . . . . . . . . . . . . . . . . . . . Slashing 1021 | . . . . . . . . 3 . . . . . 22 . 15 32 94 8 10 3 4 115 . 88 7 2 9 17 118 38 4 45 127 191 69 Piercing 158 | . . . . . . . . . . . . . . 43 2 . . 9 2 5 2 . 31 . 34 . . 1 1 5 . . 1 18 4 . Sneak Attacks 119 | . . . 1 1 . . 2 11 . . . . . 5 . 10 8 14 2 1 . 2 3 . 10 . . . 1 13 1 . 5 13 16 . Combat Hostiles 11 | . . . . . . . . . . . . . . 1 . . . . . . . . . . 1 . . . 1 2 . . . 1 5 . Follow-up Attacks 92 | . . . . . . . . . . . . . . 8 . . . . . . . . 2 . 3 . . . . 4 . . 4 10 30 31 Damage Inflicted 68152 | 250 1563 314 2396 523 . 808 4197 2722 1415 1058 . 240 4105 2885 307 1348 5611 9207 606 678 352 1474 2250 . 1550 617 . . 114 3133 611 . 1930 2636 9875 3377 Guns 5483 | 250 924 125 240 . . . 1275 . . . . . . 477 . 203 1340 649 . . . . . . . . . . . . . . . . . . Cannons 17538 | . 124 176 1810 17 . 569 1677 1307 507 214 . 32 3409 441 . . 3388 3801 . . . . . . . . . . . . . . . . 66 . Explosions 13264 | . 473 . . 444 . 163 828 558 892 844 . 208 664 483 253 . . 2754 388 263 . 1302 1439 . . 468 . . . 569 271 . . . . . Melee 30796 | . . . 70 40 . . 103 749 . . . . . 1459 54 1145 763 1976 218 415 352 172 811 . 1550 149 . . 114 2564 340 . 1930 2636 9809 3377 Ramming 775 | . 42 13 152 22 . 76 142 108 16 . . . 32 25 . . 120 27 . . . . . . . . . . . . . . . . . . Kinetic 13605 | . 410 125 240 . . . . 1307 507 214 . 32 2094 . . 81 4728 3801 . . . . . . . . . . . . . . . . 66 . Thermal 10596 | 250 638 176 1934 17 . 569 2883 . . . . . 1315 918 . 122 . 725 . . . . 778 . . . . . . . 271 . . . . . Explosive 11444 | . 473 . . 444 . 163 419 558 892 844 . 208 664 483 253 . . 2678 388 263 . 1302 375 . . 468 . . . 569 . . . . . . Electromagnetic 936 | . . . . . . . 650 . . . . . . . . . . . . . . . 286 . . . . . . . . . . . . . Impact 743 | . . . 70 40 . . 103 530 . . . . . . . . . . . . . . . . . . . . . . . . . . . . Slashing 27782 | . . . . . . . . 219 . . . . . 585 . 1145 763 1831 218 415 290 172 361 . 1104 149 . . 114 2371 340 . 1930 2636 9762 3377 Piercing 2271 | . . . . . . . . . . . . . . 874 54 . . 145 . . 62 . 450 . 446 . . . . 193 . . . . 47 . Highest Corruption 9 | . . . 4 4 4 4 . 1 . 1 1 . 3 3 3 3 2 9 . 2 . . 1 9 9 . . . . . 1 . 2 . 1 1 Average Corruption 3 | . . . 3 4 4 4 . 1 . 1 1 . 2 3 3 2 1 4 . 1 . . 1 9 3 . . . . . 1 . 2 . 1 1 Corruption Purged 45 | . . . . . . . . 2 . . . . . . . 3 2 21 . 2 . . 1 . 12 . . . . . 1 . . . 1 . Corruption Blocked 99 | . . . . . . . . . . . . . 16 . . . . . . . . . . . . . . . . . . . 15 . 68 . Effects 335 | . . . 93 34 19 36 . 2 . 13 . . 24 43 4 2 2 30 . 1 . . 1 . 14 . . . . . 2 . 4 . 11 . Message Errors 80 | . . . 27 9 6 4 . . . 2 . . 8 10 2 . 1 6 . . . . 1 . 2 . . . . . . . . . 2 . Matter Fused 84 | . . . 25 8 3 11 . 2 . 2 . . 2 10 1 1 . 5 . 1 . . . . 5 . . . . . . . 3 . 5 . Heat Flow Errors 42 | . . . 8 4 3 7 . . . 2 . . 4 6 . . 1 3 . . . . . . 4 . . . . . . . . . . . Energy Discharges 38 | . . . 7 3 2 3 . . . 5 . . 3 8 . . . 4 . . . . . . 1 . . . . . 1 . . . 1 . Parts Rejected 2 | . . . 1 . . . . . . . . . . . 1 . . . . . . . . . . . . . . . . . . . . . Data Loss (minor) 43 | . . . 15 4 1 7 . . . 1 . . 1 5 . 1 . 5 . . . . . . 1 . . . . . 1 . . . 1 . Data Loss (major) 22 | . . . 5 2 4 1 . . . . . . 2 3 . . . 4 . . . . . . . . . . . . . . 1 . . . Misfires 12 | . . . 3 2 . 2 . . . 1 . . 2 . . . . 2 . . . . . . . . . . . . . . . . . . Alerts 10 | . . . 1 2 . 1 . . . . . . 1 1 . . . 1 . . . . . . 1 . . . . . . . . . 2 . Weapon Failures 2 | . . . 1 . . . . . . . . . 1 . . . . . . . . . . . . . . . . . . . . . . . Overload Shots 4 | . . . . . . . . . . . . . 4 . . . . . . . . . . . . . . . . . . . . . . . Effects 1 | . . . . . . . . . . . . . 1 . . . . . . . . . . . . . . . . . . . . . . . Energy Bleed 1 | . . . . . . . . . . . . . 1 . . . . . . . . . . . . . . . . . . . . . . . Overflow Damage 6755 | . 36 . 18 . . 30 94 311 14 66 . . 246 191 . 398 350 897 56 356 66 155 294 . 361 144 . . . 528 95 . 203 367 1436 43 Projectiles 637 | . . . 14 . . . 21 21 6 . . . 185 73 . . 129 188 . . . . . . . . . . . . . . . . . . Explosions 1101 | . 36 . . . . 30 46 32 8 66 . . 56 . . . . 256 56 82 . 155 171 . . 32 . . . 21 54 . . . . . Melee 5017 | . . . 4 . . . 27 258 . . . . 5 118 . 398 221 453 . 274 66 . 123 . 361 112 . . . 507 41 . 203 367 1436 43 Knockbacks 88 | . 1 . . . . 1 3 9 4 1 . . 24 . . . 22 23 . . . . . . . . . . . . . . . . . . Impact 6 | . 1 . . . . 1 3 1 . . . . . . . . . . . . . . . . . . . . . . . . . . . . Kinetic 74 | . . . . . . . . 7 4 1 . . 21 . . . 21 20 . . . . . . . . . . . . . . . . . . Secondary 8 | . . . . . . . . 1 . . . . 3 . . . 1 3 . . . . . . . . . . . . . . . . . . Self-Inflicted Damage 312 | . 31 . . . . . 108 27 12 28 . . 14 . . . . 39 53 . . . . . . . . . . . . . . . . . Shots 11 | . 1 . . . . . 4 1 1 1 . . 1 . . . . 1 1 . . . . . . . . . . . . . . . . . Rammed 55 | . 7 3 11 1 . 7 8 7 . . . . 2 . . . 8 1 . . . . . . . . . . . . . . . . . . Targets Rammed 71 | . 8 3 13 1 . 8 12 8 1 . . . 3 1 . . 10 3 . . . . . . . . . . . . . . . . . . Kicked 1 | . . . . . . . . . . . . . . 1 . . . . . . . . . . . . . . . . . . . . . . Crushed 15 | . 1 . 2 . . 1 4 1 1 . . . 1 . . . 2 2 . . . . . . . . . . . . . . . . . . Highest Temperature 271 | 120 214 6 262 219 261 246 211 45 81 271 . . 185 230 . 19 131 248 . . . . . . 204 . . . . 23 . . 53 . 64 3 Average Temperature 67 | 56 72 3 47 93 122 86 86 18 23 100 . . 39 72 . 9 19 90 . . . . . . 88 . . . . 7 . . 43 . 30 3 Received Heat Transfer 5109 | . 318 18 591 . . 171 1035 129 75 216 . 21 467 575 15 65 489 417 9 . . . 12 . 18 . 36 . . 87 . . . . . 345 Siege Activations 36 | . . . . . . . . . . . . . . . . . 20 16 . . . . . . . . . . . . . . . . . . Total Turns 581 | . . . . . . . . . . . . . . . . . 315 266 . . . . . . . . . . . . . . . . . . Longest Duration 38 | . . . . . . . . . . . . . . . . . 35 38 . . . . . . . . . . . . . . . . . . Robots Corrupted 3 | . . . . . . . 2 . . . . . . . . . . . . . . . 1 . . . . . . . . . . . . . Combat Hostiles 3 | . . . . . . . 2 . . . . . . . . . . . . . . . 1 . . . . . . . . . . . . . Parts Fried 19 | . . . . . . . 5 6 . . . . 2 1 . . 5 . . . . . . . . . . . . . . . . . . . Impact Corruptions 15 | . . . 1 . . . 1 10 . . . . 1 . . . 1 1 . . . . . . . . . . . . . . . . . . Robots Melted 11 | . 1 1 3 . . 1 1 . . . . . 2 1 . . . 1 . . . . . . . . . . . . . . . . . . Combat Hostiles 10 | . 1 . 3 . . 1 1 . . . . . 2 1 . . . 1 . . . . . . . . . . . . . . . . . . Parts Melted 48 | . 7 1 11 . . 1 6 . . . . . 9 4 . 1 . 8 . . . . . . . . . . . . . . . . . . Heat Transferred 19175 | 645 2001 370 4107 37 . 1110 5260 . . . . . 1870 1700 . 275 . 1250 . . . . 450 . . . . . . . 100 . . . . . Parts Sabotaged . | . . . . . . . . . . . . . . . . . . . . . . . . . . . . . . . . . . . . . Parts Stolen . | . . . . . . . . . . . . . . . . . . . . . . . . . . . . . . . . . . . . . Parts Stripped . | . . . . . . . . . . . . . . . . . . . . . . . . . . . . . . . . . . . . . Power Chain Reactions 5 | . . . . . . . 3 . . . . . 1 . . . . . . . . . 1 . . . . . . . . . . . . . Missiles Intercepted . | . . . . . . . . . . . . . . . . . . . . . . . . . . . . . . . . . . . . . Alert | -11 -10 -10 -9 -9 -9 -8 -8 -7 -7 -7 -7 -6 -6 -6 -6 -6 -6 -5 -5 -5 -5 -4 -4 -4 -4 -4 -4 -4 -3 -3 -3 -3 -2 -1 -1 -1 ------- Run | Scr Mat Min Mat Min Exi Min Mat Fac Low Low Zio Pro Fac Ext Cet Arc Hub Fac Upp Upp Zhi Pro Fac Was Fac Upp Upp War Pro Res Arm Lab Res Acc Com Ac0 Peak Influence 895 | 25 169 71 246 192 . 130 406 341 . . . . 449 297 330 258 353 895 . . . . 764 140 342 . . . . 479 559 . 548 471 574 . Initial 242 | . 16 24 . 18 . . 6 148 . . . . 46 189 66 132 . 168 . . . . . 140 98 . . . . 20 101 . . 228 242 . Average 177 | 12 64 28 81 72 . 41 214 221 . . . . 139 140 215 101 75 253 . . . . 357 140 212 . . . . 152 410 . 225 322 324 . Maximum Alert Level 3 | . . . 1 . . . 2 1 . . . . 2 1 1 1 1 3 . . . . 3 . 1 . . . . 2 2 . 2 2 2 . Low Security (%) 57 | 100 100 100 96 100 . 100 40 26 . . . . 78 75 50 70 86 63 . . . . 14 100 48 . . . . 77 19 . 53 3 5 . Level 1 33 | . . . 3 . . . 59 73 . . . . 19 24 50 29 13 15 . . . . 52 . 51 . . . . 20 14 . 30 79 44 . Level 2 7 | . . . . . . . . . . . . . 1 . . . . 7 . . . . 26 . . . . . . 1 66 . 16 17 50 . Level 3 1 | . . . . . . . . . . . . . . . . . . 13 . . . . 6 . . . . . . . . . . . . . Level 4 . | . . . . . . . . . . . . . . . . . . . . . . . . . . . . . . . . . . . . . Level 5 . | . . . . . . . . . . . . . . . . . . . . . . . . . . . . . . . . . . . . . High Security . | . . . . . . . . . . . . . . . . . . . . . . . . . . . . . . . . . . . . . Max Security . | . . . . . . . . . . . . . . . . . . . . . . . . . . . . . . . . . . . . . Squads Dispatched 137 | . 4 . 5 . . . 5 13 . . . . 11 . . . 15 20 . . . . 10 . 8 . . . . 14 8 . 1 15 8 . Investigation 56 | . 3 . 3 . . . 2 4 . . . . 5 . . . 6 6 . . . . 6 . 6 . . . . 6 4 . . 4 1 . Extermination 39 | . . . . . . . . 6 . . . . 3 . . . 5 9 . . . . 1 . 1 . . . . 5 2 . . 4 3 . Reinforcement 39 | . 1 . 2 . . . 3 2 . . . . 3 . . . 4 3 . . . . 3 . 1 . . . . 3 2 . 1 7 4 . Assault 2 | . . . . . . . . . . . . . . . . . . 2 . . . . . . . . . . . . . . . . . . Garrison 1 | . . . . . . . . 1 . . . . . . . . . . . . . . . . . . . . . . . . . . . . Intercept . | . . . . . . . . . . . . . . . . . . . . . . . . . . . . . . . . . . . . . Searches Triggered 2 | . . . . . . . . . . . . . . . . . . . . . . . . . . . . . . . . . . 1 1 . Construction Impeded . | . . . . . . . . . . . . . . . . . . . . . . . . . . . . . . . . . . . . . Haulers Reinforced 6 | . . . . . . . . . . . . . . . . . 1 1 . . . . . . . . . . . 2 . . 1 1 . . Active Scanning Responses . | . . . . . . . . . . . . . . . . . . . . . . . . . . . . . . . . . . . . . Cargo Convoy Interrupts 1 | . . . . . . . . . . . . . 1 . . . . . . . . . . . . . . . . . . . . . . . Stealth | -11 -10 -10 -9 -9 -9 -8 -8 -7 -7 -7 -7 -6 -6 -6 -6 -6 -6 -5 -5 -5 -5 -4 -4 -4 -4 -4 -4 -4 -3 -3 -3 -3 -2 -1 -1 -1 --------- Run | Scr Mat Min Mat Min Exi Min Mat Fac Low Low Zio Pro Fac Ext Cet Arc Hub Fac Upp Upp Zhi Pro Fac Was Fac Upp Upp War Pro Res Arm Lab Res Acc Com Ac0 Distress Signals 59 | . . . 5 . . 1 2 . . . . . . 2 1 . 5 1 . . . . 6 . 5 . . . . 3 . . 5 2 21 . Communications Jammed 44 | . . . . . . . . . . . . . . . . . . . . . . . 20 . 6 . . . . 10 . . 4 4 . . Distress Signals 40 | . . . . . . . . . . . . . . . . . . . . . . . 20 . 2 . . . . 10 . . 4 4 . . Times Spotted 684 | . 25 3 46 8 . 9 64 25 11 6 . 6 42 39 10 10 49 70 5 5 . 5 33 7 32 9 5 1 3 36 7 . 17 19 31 46 Peak Tracking Total 38 | . 5 2 6 4 . 3 4 4 13 4 . 4 7 5 5 3 6 6 4 3 . 3 7 6 6 5 3 3 2 9 3 . 10 5 11 38 Tactical Retreats 83 | . . . 1 . . . 1 1 1 . . . 2 9 . . 3 6 1 2 . . 10 . 10 . 4 . 1 11 1 . 5 4 6 4 Traps | -11 -10 -10 -9 -9 -9 -8 -8 -7 -7 -7 -7 -6 -6 -6 -6 -6 -6 -5 -5 -5 -5 -4 -4 -4 -4 -4 -4 -4 -3 -3 -3 -3 -2 -1 -1 -1 ------- Run | Scr Mat Min Mat Min Exi Min Mat Fac Low Low Zio Pro Fac Ext Cet Arc Hub Fac Upp Upp Zhi Pro Fac Was Fac Upp Upp War Pro Res Arm Lab Res Acc Com Ac0 Traps Triggered 33 | . 3 . 3 . . . 6 . . . . . 2 1 . . . 7 . . . . 2 . . . . . . 1 . . 1 1 6 . Indirectly 1 | . . . . . . . . . . . . . . . . . . . . . . . 1 . . . . . . . . . . . . . Trap Hack Attempts . | . . . . . . . . . . . . . . . . . . . . . . . . . . . . . . . . . . . . . Triggered . | . . . . . . . . . . . . . . . . . . . . . . . . . . . . . . . . . . . . . Disarmed . | . . . . . . . . . . . . . . . . . . . . . . . . . . . . . . . . . . . . . Reprogrammed 140 | . . . . . . . . 4 . . . . 10 . . . 16 . . . . . 39 . 18 . . . . 22 2 . . 24 5 . Reused 52 | . . . . . . . . 1 . . . . 2 . . . 3 . . . . . 12 . 10 . . . . 8 2 . . 11 3 . Traps Extracted 1 | . . . . . . . . . . . . . . . . . . . 1 . . . . . . . . . . . . . . . . . Installed 1 | . . . . . . . . . . . . . . . . . . . . . . . . . 1 . . . . . . . . . . . Triggered 77 | . . . . . . . . 1 . 1 . 1 2 . . . 3 . 1 2 . 2 12 . 12 . 3 11 2 8 2 . . 11 3 . Most Traps Carried 6 | . . . . . . . . . . . . . . . . . . . 6 6 6 6 6 6 6 . . . . . . . . . . . Machines | -11 -10 -10 -9 -9 -9 -8 -8 -7 -7 -7 -7 -6 -6 -6 -6 -6 -6 -5 -5 -5 -5 -4 -4 -4 -4 -4 -4 -4 -3 -3 -3 -3 -2 -1 -1 -1 ---------- Run | Scr Mat Min Mat Min Exi Min Mat Fac Low Low Zio Pro Fac Ext Cet Arc Hub Fac Upp Upp Zhi Pro Fac Was Fac Upp Upp War Pro Res Arm Lab Res Acc Com Ac0 Machines Disabled 72 | . . 1 3 2 . . . 1 1 . . . 7 . 1 3 2 13 1 . . . 16 . . . . 1 . . 7 1 1 1 3 7 Max in Single Turn 6 | . . 1 1 1 . . . 1 1 . . . 1 . 1 . 1 6 1 . . . 5 . . . . 1 . . 2 1 1 1 1 1 Garrison Access 16 | . . . . . . . 1 1 . . . . . . . . . 2 . . . . 3 . 4 . . . . 2 . . 2 1 . . Network Hub 2 | . . . . . . . . . . . . . . . . . 2 . . . . . . . . . . . . . . . . . . . Energy Cycler 2 | . . . . . . . . . . . . . . 1 . . . . . . . . . . . . . . . . 1 . . . . . Machines Sabotaged 2 | . . . . . . . . . . . . . . . . . 2 . . . . . . . . . . . . . . . . . . . Garrisons Compromised 1 | . . . . . . . . . . . . . 1 . . . . . . . . . . . . . . . . . . . . . . . Overloaded Fab Kills . | . . . . . . . . . . . . . . . . . . . . . . . . . . . . . . . . . . . . . Hacking | -11 -10 -10 -9 -9 -9 -8 -8 -7 -7 -7 -7 -6 -6 -6 -6 -6 -6 -5 -5 -5 -5 -4 -4 -4 -4 -4 -4 -4 -3 -3 -3 -3 -2 -1 -1 -1 --------- Run | Scr Mat Min Mat Min Exi Min Mat Fac Low Low Zio Pro Fac Ext Cet Arc Hub Fac Upp Upp Zhi Pro Fac Was Fac Upp Upp War Pro Res Arm Lab Res Acc Com Ac0 Machines Accessed 264 | . 10 . 14 2 2 . 13 17 1 . 1 . 13 8 1 . 13 23 1 . 4 1 26 . 29 1 1 9 1 23 6 1 2 27 14 . Terminals 141 | . 7 . 10 2 . . 8 9 1 . . . 7 7 1 . 13 8 . . . 1 10 . 12 . . . 1 13 2 . 1 15 13 . Fabricators 37 | . . . . . . . . 5 . . . . 4 . . . . 6 . . . . 5 . 6 . . . . 3 4 . . 4 . . Repair Stations 19 | . 1 . . . . . 1 1 . . . . . . . . . 3 . . . . 3 . 3 . . . . 3 . . . 3 1 . Recycling Units 24 | . 2 . 2 . . . 2 1 . . . . 1 1 . . . 3 . . . . 3 . 4 . . . . 2 . . . 3 . . Scanalyzers 6 | . . . 2 . . . 1 . . . . . . . . . . 1 . . . . 2 . . . . . . . . . . . . . Garrison Access 17 | . . . . . . . 1 1 . . . . 1 . . . . 2 . . . . 3 . 4 . . . . 2 . . 1 2 . . Total Hacks 1212 | . 25 . 41 3 2 . 41 54 3 . 1 . 54 26 1 . 66 139 1 . 17 1 161 . 141 1 1 12 1 165 37 1 9 138 70 . Successful 897 | . 15 . 22 1 2 . 25 40 3 . 1 . 28 11 1 . 46 95 1 . 17 1 111 . 126 1 1 12 1 130 32 1 7 120 46 . Failed 309 | . 9 . 19 2 . . 15 14 . . . . 25 15 . . 20 43 . . . . 49 . 15 . . . . 35 5 . 2 17 24 . Catastrophic 42 | . 1 . 4 . . . 2 2 . . . . 3 3 . . 1 5 . . . . 10 . . . . . . 5 . . . 2 4 . Database Lockouts 6 | . 1 . . . . . 1 . . . . . 1 . . . . 1 . . . . 1 . . . . . . . . . . 1 . . Manual 674 | . 15 . 24 5 1 . 26 30 . . 4 . 36 17 . . 44 53 . . . . 95 . 70 . . . . 103 22 . 5 77 47 . Terminals 751 | . 21 . 31 3 . . 29 35 3 . . . 36 22 1 . 66 60 . . . 1 96 . 66 . . . 1 111 21 . 8 79 61 . Fabricators 184 | . . . . . . . . 13 . . . . 11 . . . . 42 . . . . 29 . 34 . . . . 16 16 . . 23 . . Repair Stations 106 | . 2 . . . . . 4 2 . . . . . . . . . 15 . . . . 11 . 18 . . . . 25 . . . 20 9 . Recycling Units 88 | . 2 . 2 . . . 3 2 . . . . 5 4 . . . 16 . . . . 12 . 19 . . . . 11 . . . 12 . . Scanalyzers 23 | . . . 8 . . . 3 . . . . . . . . . . 4 . . . . 8 . . . . . . . . . . . . . Garrison Access 24 | . . . . . . . 2 2 . . . . 2 . . . . 2 . . . . 5 . 4 . . . . 2 . . 1 4 . . Terminal Hacks 403 | . 8 . 8 1 2 . 8 16 3 . 1 . 13 5 1 . 31 28 1 . 17 1 44 . 42 1 1 12 1 61 12 1 6 49 29 . Record 25 | . . . . . 1 . . . 3 . . . . . . . . . 1 . 5 1 . . . . . 11 1 1 . 1 . . . . Part Schematic 42 | . . . . . . . 1 1 . . 1 . 1 . . . . 5 . . 4 . 6 . 8 . . . . 10 1 . . 4 . . Robot Schematic 1 | . . . . . . . . . . . . . . . . . . 1 . . . . . . . . . . . . . . . . . . Robot Analysis 28 | . 1 . 2 1 . . . 3 . . . . 1 . . . . 1 . . 4 . 6 . 1 . . . . 7 . . . 1 . . Prototype ID Bank 12 | . 1 . . . . . 1 1 . . . . . . . . 1 1 . . 4 . 2 . . . . . . . . . . 1 . . Open Door 12 | . . . . . . . . . . . . . . 2 1 . . . . . . . . . . 1 1 1 . . 1 . . 4 1 . Level Access Points 7 | . . . . . . . . . . . . . . . . . 1 . . . . . 1 . 1 . . . . 1 1 . 1 1 . . Branch Access Points 8 | . 1 . . . . . . 1 . . . . 1 . . . . 1 . . . . . . 1 . . . . 1 . . 1 1 . . Emergency Access Points 7 | . . . . . . . . . . . . . . . . . . 1 . . . . 1 . . . . . . . . . . . 5 . Machine Index 8 | . . . . . . . . . . . . . . . . . . 1 . . . . 1 . 1 . . . . 1 1 . 1 1 1 . Terminal Index 5 | . . . . . . . . 1 . . . . 1 . . . 1 . . . . . . . . . . . . 1 . . . . 1 . Fabricator Index 3 | . . . . . . . . 1 . . . . 1 . . . . . . . . . . . . . . . . 1 . . . . . . Repair Station Index 3 | . . . . . . . . 1 . . . . . . . . 1 . . . . . . . . . . . . . . . . . 1 . Recycling Unit Index 2 | . . . . . . . . . . . . . . . . . 1 . . . . . . . . . . . . . . . . . 1 . Garrison Index 1 | . . . . . . . . . . . . . . . . . 1 . . . . . . . . . . . . . . . . . . . Alert Level 20 | . . . 2 . . . 1 . . . . . 1 1 . . 2 3 . . . . 2 . 3 . . . . 2 1 . . 1 1 . Unreport Threat 29 | . 1 . 3 . . . 2 . . . . . 1 2 . . 3 5 . . . . 5 . 1 . . . . 4 1 . . . 1 . Locate Traps 37 | . 3 . . . . . 1 1 . . . . 1 . . . 3 2 . . . . . . 9 . . . . 5 1 . 1 8 2 . Reprogram Traps 28 | . . . . . . . . 1 . . . . 2 . . . 3 . . . . . 8 . 3 . . . . 4 1 . . 4 2 . Maintenance Status 4 | . . . . . . . . . . . . . . . . . . 1 . . . . . . . . . . . 1 . . 1 1 . . Security Status 1 | . . . . . . . . . . . . . . . . . . . . . . . . . . . . . . . 1 . . . . . Patrol Status 8 | . . . . . . . . 1 . . . . 1 . . . . 1 . . . . 1 . 1 . . . . 1 1 . . 1 . . Recall Investigation 9 | . . . . . . . . 2 . . . . . . . . . . . . . . 1 . 1 . . . . 2 . . . 2 1 . Recall Extermination 13 | . . . . . . . . . . . . . . . . . 2 2 . . . . . . 1 . . . . 4 . . . 3 1 . Recall Reinforcements 7 | . . . . . . . . . . . . . . . . . . . . . . . 2 . . . . . . 3 . . . 2 . . Hauler Manifests 17 | . 1 . 1 . . . 1 1 . . . . 1 . . . 2 1 . . . . 1 . 3 . . . . 2 1 . . 2 . . Registered Components 3 | . . . . . . . . . . . . . . . . . . 1 . . . . . . . . . . . . . . . 1 1 . Registered Prototypes 1 | . . . . . . . . . . . . . . . . . . . . . . . . . . . . . . . . . . 1 . . Zone Layout 59 | . . . . . . . 1 1 . . . . 1 . . . 10 1 . . . . 7 . 8 . . . . 10 1 . 1 10 8 . EX-Prototype ID Bank 1 | . . . . . 1 . . . . . . . . . . . . . . . . . . . . . . . . . . . . . . . Disengage Seal 2 | . . . . . . . . . . . . . . . . . . . . . . . . . . . . . . . . . . . 2 . Fabricator Hacks 110 | . . . . . . . . 6 . . . . 4 . . . . 25 . . . . 17 . 22 . . . . 10 10 . . 16 . . Network Status 10 | . . . . . . . . 1 . . . . . . . . . 2 . . . . 1 . 1 . . . . 2 1 . . 2 . . Load Schematic 62 | . . . . . . . . 3 . . . . 3 . . . . 14 . . . . 10 . 13 . . . . 5 6 . . 8 . . Build 38 | . . . . . . . . 2 . . . . 1 . . . . 9 . . . . 6 . 8 . . . . 3 3 . . 6 . . Repair Station Hacks 95 | . 2 . . . . . 4 2 . . . . . . . . . 12 . . . . 7 . 18 . . . . 24 . . . 18 8 . Scan Component 48 | . 1 . . . . . 2 1 . . . . . . . . . 6 . . . . 4 . 9 . . . . 12 . . . 9 4 . Repair 47 | . 1 . . . . . 2 1 . . . . . . . . . 6 . . . . 3 . 9 . . . . 12 . . . 9 4 . Recycling Unit Hacks 24 | . . . . . . . . 2 . . . . 1 . . . . 6 . . . . 3 . 6 . . . . 3 . . . 3 . . Report Inventory 11 | . . . . . . . . 1 . . . . 1 . . . . 2 . . . . . . 4 . . . . 1 . . . 2 . . Retrieve Matter 3 | . . . . . . . . . . . . . . . . . . 2 . . . . . . 1 . . . . . . . . . . . Retrieve Components 10 | . . . . . . . . 1 . . . . . . . . . 2 . . . . 3 . 1 . . . . 2 . . . 1 . . Scanalyzer 21 | . . . 8 . . . 3 . . . . . . . . . . 2 . . . . 8 . . . . . . . . . . . . . Insert Component 11 | . . . 4 . . . 2 . . . . . . . . . . 1 . . . . 4 . . . . . . . . . . . . . Analyze 10 | . . . 4 . . . 1 . . . . . . . . . . 1 . . . . 4 . . . . . . . . . . . . . Garrison Access Hacks 14 | . . . . . . . . 1 . . . . . . . . . 2 . . . . 3 . 4 . . . . 2 . . 1 1 . . Seal Access 14 | . . . . . . . . 1 . . . . . . . . . 2 . . . . 3 . 4 . . . . 2 . . 1 1 . . Unauthorized Hacks 230 | . 5 . 6 . . . 10 13 . . . . 10 6 . . 15 20 . . . . 29 . 34 . . . . 30 10 . . 33 9 . Terminals 115 | . 3 . 4 . . . 6 9 . . . . 3 5 . . 15 1 . . . . 13 . 12 . . . . 16 5 . . 14 9 . Track 27 | . . . . . . . . . . . . . . . . . 1 . . . . . 2 . 5 . . . . 8 1 . . 7 3 . Assimilate 29 | . . . 1 . . . 3 4 . . . . . 2 . . 3 1 . . . . 1 . 3 . . . . 5 1 . . 2 3 . Botnet 38 | . 2 . 2 . . . 2 5 . . . . 2 2 . . 6 . . . . . 5 . 3 . . . . 2 1 . . 3 3 . Detonate 5 | . . . . . . . . . . . . . . . . . . . . . . . 4 . . . . . . . 1 . . . . . Disrupt 1 | . . . . . . . . . . . . . . . . . . . . . . . . . . . . . . . . . . 1 . . Operators 11 | . 1 . 1 . . . 1 . . . . . 1 1 . . 1 . . . . . 1 . 1 . . . . 1 1 . . 1 . . Sabotage 4 | . . . . . . . . . . . . . . . . . 4 . . . . . . . . . . . . . . . . . . . Fabricators 54 | . . . . . . . . 4 . . . . 3 . . . . 11 . . . . 8 . 10 . . . . 6 5 . . 7 . . Report 2 | . . . . . . . . . . . . . . . . . . . . . . . . . 1 . . . . . . . . 1 . . Prioritize 13 | . . . . . . . . 1 . . . . . . . . . 1 . . . . 4 . 2 . . . . 1 2 . . 2 . . Liberate 3 | . . . . . . . . . . . . . . . . . . 1 . . . . . . 1 . . . . . . . . 1 . . Haulers 7 | . . . . . . . . . . . . . . . . . . 3 . . . . . . 1 . . . . 3 . . . . . . Recompile 29 | . . . . . . . . 3 . . . . 3 . . . . 6 . . . . 4 . 5 . . . . 2 3 . . 3 . . Repair Stations 1 | . . . . . . . . . . . . . . . . . . . . . . . 1 . . . . . . . . . . . . . Mechanics 1 | . . . . . . . . . . . . . . . . . . . . . . . 1 . . . . . . . . . . . . . Recycling Units 56 | . 2 . 2 . . . 3 . . . . . 4 1 . . . 8 . . . . 7 . 12 . . . . 8 . . . 9 . . Monitor 8 | . . . . . . . . . . . . . 1 . . . . 1 . . . . . . 2 . . . . 2 . . . 2 . . Reject 18 | . . . . . . . 1 . . . . . 1 1 . . . 3 . . . . 3 . 4 . . . . 2 . . . 3 . . Recyclers 8 | . . . . . . . . . . . . . 1 . . . . 1 . . . . 1 . 2 . . . . 2 . . . 1 . . Mask 18 | . . . . . . . 2 . . . . . 1 . . . . 3 . . . . 3 . 4 . . . . 2 . . . 3 . . Tunnel 4 | . 2 . 2 . . . . . . . . . . . . . . . . . . . . . . . . . . . . . . . . . Scanalyzers . | . . . . . . . . . . . . . . . . . . . . . . . . . . . . . . . . . . . . . Garrison Access 4 | . . . . . . . 1 . . . . . . . . . . . . . . . . . . . . . . . . . . 3 . . Broadcast 1 | . . . . . . . . . . . . . . . . . . . . . . . . . . . . . . . . . . 1 . . Decoy 1 | . . . . . . . . . . . . . . . . . . . . . . . . . . . . . . . . . . 1 . . Watchers 1 | . . . . . . . . . . . . . . . . . . . . . . . . . . . . . . . . . . 1 . . Jam 1 | . . . . . . . 1 . . . . . . . . . . . . . . . . . . . . . . . . . . . . . Data Cores Recovered 1 | . . . . . . . . . . . . . . . . . . . . . . . . . . . . . . . . . . . 1 . Used 1 | . . . . . . . . . . . . . . . . . . . . . . . . . . . . . . . . . . . 1 . Hacking Detections 150 | . 4 . 11 2 . . 11 14 1 . . . 11 5 . . 7 14 . . . . 14 . 15 . . . . 15 2 . 1 13 10 . Full Trace Events 11 | . . . . . . . . 1 . . . . 2 . . . 1 . . . . . 1 . 1 . . . . 2 1 . . 1 1 . Feedback Events 2 | . . . . . . . . . . . . . 1 . . . 1 . . . . . . . . . . . . . . . . . . . Hackware Fried 2 | . . . . . . . . . . . . . 1 . . . 1 . . . . . . . . . . . . . . . . . . . Feedback Blocked . | . . . . . . . . . . . . . . . . . . . . . . . . . . . . . . . . . . . . . Robot Schematics Acquired 3 | . . . . . . . . . . . 2 . . . . . . 1 . . . . . . . . . . . . . . . . . . Robots Built 5 | . . . . . . . . 3 . . . . . . . . . 2 . . . . . . . . . . . . . . . . . . Authchips . | . . . . . . . . . . . . . . . . . . . . . . . . . . . . . . . . . . . . . Time 125 | . . . . . . . . 49 . . . . . . . . . 76 . . . . . . . . . . . . . . . . . . Total Robot Build Rating 16 | . . . . . . . . 6 . . . . . . . . . 10 . . . . . . . . . . . . . . . . . . Part Schematics Acquired 65 | . . . 3 . . . 2 1 . . 17 . 1 . . . . 6 . . 4 . 8 . 8 . . . . 10 1 . . 4 . . Parts Built 37 | . . . . . . . . 1 . . . . 1 . . . . 8 . . . . 6 . 8 . . . . 3 3 . . 7 . . Authchips 28 | . . . . . . . . . . . . . . . . . . 8 . . . . 5 . 7 . . . . 2 2 . . 4 . . Time 1950 | . . . . . . . . 106 . . . . 35 . . . . 593 . . . . 379 . 404 . . . . 148 95 . . 190 . . Total Part Build Rating 264 | . . . . . . . . 6 . . . . 6 . . . . 42 . . . . 40 . 60 . . . . 27 26 . . 57 . . Parts Repaired 47 | . 1 . . . . . 2 1 . . . . . . . . . 6 . . . . 3 . 9 . . . . 12 . . . 9 4 . Time 1803 | . 26 . . . . . 168 53 . . . . . . . . . 192 . . . . 120 . 328 . . . . 416 . . . 298 202 . Parts Recycled . | . . . . . . . . . . . . . . . . . . . . . . . . . . . . . . . . . . . . . Recycled Matter . | . . . . . . . . . . . . . . . . . . . . . . . . . . . . . . . . . . . . . Retrieved Matter . | . . . . . . . . . . . . . . . . . . . . . . . . . . . . . . . . . . . . . Retrieved Components 46 | . . . . . . . . 1 . . . . . . . . . 12 . . . . 15 . 6 . . . . 12 . . . . . . Parts Scanalyzed 8 | . . . 4 . . . 1 . . . . . . . . . . 1 . . . . 2 . . . . . . . . . . . . . Part Schematics Acquired 7 | . . . 3 . . . 1 . . . . . . . . . . 1 . . . . 2 . . . . . . . . . . . . . Parts Damaged 1 | . . . . . . . 1 . . . . . . . . . . . . . . . . . . . . . . . . . . . . . Bothacking | -11 -10 -10 -9 -9 -9 -8 -8 -7 -7 -7 -7 -6 -6 -6 -6 -6 -6 -5 -5 -5 -5 -4 -4 -4 -4 -4 -4 -4 -3 -3 -3 -3 -2 -1 -1 -1 ------------ Run | Scr Mat Min Mat Min Exi Min Mat Fac Low Low Zio Pro Fac Ext Cet Arc Hub Fac Upp Upp Zhi Pro Fac Was Fac Upp Upp War Pro Res Arm Lab Res Acc Com Ac0 Used RIF Installer . | . . . . . . . . . . . . . . . . . . . . . . . . . . . . . . . . . . . . . Robots Hacked . | . . . . . . . . . . . . . . . . . . . . . . . . . . . . . . . . . . . . . Non-combat . | . . . . . . . . . . . . . . . . . . . . . . . . . . . . . . . . . . . . . Combat . | . . . . . . . . . . . . . . . . . . . . . . . . . . . . . . . . . . . . . Robot Hacks Applied . | . . . . . . . . . . . . . . . . . . . . . . . . . . . . . . . . . . . . . Relay Couplers Released 1 | . . . . . . . . . . . . . . . . . . . . . . . . . . . . . . . . . 1 . . . Machine Destruction 1 | . . . . . . . . . . . . . . . . . . . . . . . . . . . . . . . . . 1 . . . Fabnet Peak Effective % . | . . . . . . . . . . . . . . . . . . . . . . . . . . . . . . . . . . . . . Robots Rewired 19 | . . . . . . . . . . . . . . 7 . . . . . . . . . . . . . 4 . . 8 . . . . . Allies Hacked . | . . . . . . . . . . . . . . . . . . . . . . . . . . . . . . . . . . . . . Hacks Repelled . | . . . . . . . . . . . . . . . . . . . . . . . . . . . . . . . . . . . . . Allies | -11 -10 -10 -9 -9 -9 -8 -8 -7 -7 -7 -7 -6 -6 -6 -6 -6 -6 -5 -5 -5 -5 -4 -4 -4 -4 -4 -4 -4 -3 -3 -3 -3 -2 -1 -1 -1 -------- Run | Scr Mat Min Mat Min Exi Min Mat Fac Low Low Zio Pro Fac Ext Cet Arc Hub Fac Upp Upp Zhi Pro Fac Was Fac Upp Upp War Pro Res Arm Lab Res Acc Com Ac0 Total Allies 80 | . . 3 1 1 . . 1 9 . . 7 . 3 18 . . 1 10 . . . . 1 . 5 . . 4 . 4 9 . . 1 2 . Largest Group 9 | . . 3 2 1 1 . 1 3 3 . 7 7 4 9 9 5 1 3 . . . . 1 . 3 . . 4 . 2 8 . . 1 1 . Highest-Rated Group 388 | . . 40 32 31 31 . 10 93 93 . 187 187 119 240 240 126 39 108 . . . . 26 . 141 . . 242 . 45 388 . . 45 45 . Highest-Rated Ally 65 | . . 16 16 31 31 . 10 31 31 . 32 32 32 39 39 39 39 54 . . . . 26 . 47 . . 65 . 45 50 . . 45 45 . Total Orders 52 | . . . 2 . . . 1 6 . . . . . . . . . 1 . . . . . . 3 . . 2 . 10 27 . . . . . STAY 44 | . . . 2 . . . 1 5 . . . . . . . . . 1 . . . . . . 3 . . 1 . 9 22 . . . . . FOLLOW 8 | . . . . . . . . 1 . . . . . . . . . . . . . . . . . . . 1 . 1 5 . . . . . Ally Attacks 371 | . . 17 13 . . . . 21 29 . . 24 34 40 38 15 . 59 . . . . . . 7 . . . . . 74 . . . . . Total Damage 8814 | . . 208 125 . . . . 610 334 . . 548 635 712 854 289 . 1703 . . . . . . 217 . . . . . 2579 . . . . . Kills 71 | . . 5 4 . . . . 5 5 . . 2 11 4 7 4 . 10 . . . . . . . . . . . . 14 . . . . . Allies Corrupted 2 | . . . . . . . . . . . . . . . . . . 1 . . . . . . 1 . . . . . . . . . . . Allies Melted 5 | . . 1 . . . . . . . . . . 1 1 . . . 2 . . . . . . . . . . . . . . . . . . Intel | -11 -10 -10 -9 -9 -9 -8 -8 -7 -7 -7 -7 -6 -6 -6 -6 -6 -6 -5 -5 -5 -5 -4 -4 -4 -4 -4 -4 -4 -3 -3 -3 -3 -2 -1 -1 -1 ------- Run | Scr Mat Min Mat Min Exi Min Mat Fac Low Low Zio Pro Fac Ext Cet Arc Hub Fac Upp Upp Zhi Pro Fac Was Fac Upp Upp War Pro Res Arm Lab Res Acc Com Ac0 Robot Analysis Total 28 | . 1 . 2 1 . . . 3 . . . . 1 . . . . 1 . . 4 . 6 . 1 . . . . 7 . . . 1 . . Derelict Logs Recovered 20 | . . 1 . 2 . . . . 2 1 2 3 . . . . . . 2 1 . 2 . . . 1 3 . . . . . . . . . Drone Launches . | . . . . . . . . . . . . . . . . . . . . . . . . . . . . . . . . . . . . . Drone Recoveries . | . . . . . . . . . . . . . . . . . . . . . . . . . . . . . . . . . . . . . Exploration | -11 -10 -10 -9 -9 -9 -8 -8 -7 -7 -7 -7 -6 -6 -6 -6 -6 -6 -5 -5 -5 -5 -4 -4 -4 -4 -4 -4 -4 -3 -3 -3 -3 -2 -1 -1 -1 ------------- Run | Scr Mat Min Mat Min Exi Min Mat Fac Low Low Zio Pro Fac Ext Cet Arc Hub Fac Upp Upp Zhi Pro Fac Was Fac Upp Upp War Pro Res Arm Lab Res Acc Com Ac0 Turns Passed 72654 | 176 2180 1606 4577 1652 1036 1566 9934 4153 3432 2545 2930 2658 2193 2778 234 1141 2889 5626 482 1124 91 463 1396 28 2020 407 820 531 929 2419 767 267 423 1946 4915 320 Spaces Moved 62761 | 72 934 647 2078 673 425 606 3193 1446 1318 986 1166 1055 701 1204 103 448 1198 4029 1304 1275 182 1159 3037 109 3836 1429 1312 1351 1237 3525 1922 371 1526 4505 10581 1818 Core 4 | 3 1 . . . . . . . . . . . . . . . . . . . . . . . . . . . . . . . . . . . Treads 19066 | 69 933 647 1860 673 425 606 3193 1446 1318 986 1166 1055 701 119 . 320 1198 2351 . . . . . . . . . . . . . . . . . . Legs 1318 | . . . . . . . . . . . . . . 1085 103 128 . . . . 1 . . . . . . 1 . . . . . . . . Wheels 218 | . . . 218 . . . . . . . . . . . . . . . . . . . . . . . . . . . . . . . . . Hover . | . . . . . . . . . . . . . . . . . . . . . . . . . . . . . . . . . . . . . Flight 42155 | . . . . . . . . . . . . . . . . . . 1678 1304 1275 181 1159 3037 109 3836 1429 1312 1350 1237 3525 1922 371 1526 4505 10581 1818 Fastest Speed 5 | 50 150 240 110 240 240 240 240 250 250 250 250 250 243 187 192 160 163 25 25 25 25 25 25 25 24 25 25 24 20 13 22 19 7 7 5 7 Average Speed 87 | 155 195 240 189 240 240 240 242 250 250 250 250 250 246 198 192 219 168 106 26 25 25 25 25 25 24 25 25 25 24 22 22 22 13 15 22 11 Slowest Speed 540 | 160 240 240 240 240 240 240 250 250 250 250 250 250 330 540 192 240 243 242 90 90 190 25 167 25 25 90 25 170 25 167 22 86 14 166 164 83 Overloaded Moves 923 | . . . . . . . . . . . . . . . . . . . . . . . . . . . . . 6 36 . . 21 34 102 724 Propulsion Burnouts . | . . . . . . . . . . . . . . . . . . . . . . . . . . . . . . . . . . . . . Robots Hopped 127 | . . . . . . . . . . . . . . . . . . 4 . . . . 8 . 11 . . 4 2 15 5 . 24 4 6 44 Cave-ins Triggered 1 | . . . . . . . . . . . . . . . . . . . . . . . . . 1 . . . . . . . . . . . Teleports 4 | . . . . . . . . . . . . . . . . . . . . . . . . . . . . . . . 1 . . . 1 2 Exploration Rate (%) 77 | 5 98 98 99 99 69 98 92 27 98 99 86 99 24 75 64 95 77 60 92 95 60 96 62 89 60 94 99 95 95 56 50 96 39 61 95 88 Regions Visited 36 Branch Regions 24 Pre-discovered Areas 24 | . 2 2 2 1 1 . . . 1 1 3 2 . . . . . . 2 . 3 . . . . 1 3 . . . . . . . . . Known Exits Taken 23 | . 1 . . . . 1 . 1 1 1 1 1 1 . . . 1 1 1 1 1 1 . . 1 1 1 1 1 1 . 1 1 1 . . Unknown Exits Taken 11 | 1 . 1 1 1 1 . 1 . . . . . . 1 1 1 . . . . . . . . . . . . . . 1 . . . 1 . Scrap Searched 36 | . . 1 . 1 . 2 . . 5 2 3 2 . . . . . . 2 2 . 5 . . . 2 4 . 5 . . . . . . . Spaces Dug 663 | . . . 1 . . . 6 19 2 . . . 2 . . . 17 59 20 8 . 37 157 . 75 22 2 . 34 71 22 . 15 73 18 3 Terrain Destroyed 1634 | . 38 . 1 34 . 12 70 59 48 97 . 6 124 47 . . 30 207 30 29 . 140 241 . 75 53 2 . 34 98 36 . 15 73 32 3 Melee 495 | . . . 1 . . . 6 18 . . . . 2 . . . 11 45 4 8 . 2 103 . 75 5 2 . 12 70 22 . 15 73 18 3 Projectile 133 | . . . . . . . 1 10 6 5 . 1 42 3 . . 19 35 . . . . . . . . . . . 7 1 . . . 3 . AOE 1006 | . 38 . . 34 . 12 63 31 42 92 . 5 80 44 . . . 127 26 21 . 138 138 . . 48 . . 22 21 13 . . . 11 . Terrain Rammed . | . . . . . . . . . . . . . . . . . . . . . . . . . . . . . . . . . . . . . Walls Destroyed . | . . . . . . . . . . . . . . . . . . . . . . . . . . . . . . . . . . . . . Machines Disabled . | . . . . . . . . . . . . . . . . . . . . . . . . . . . . . . . . . . . . . Actions | -11 -10 -10 -9 -9 -9 -8 -8 -7 -7 -7 -7 -6 -6 -6 -6 -6 -6 -5 -5 -5 -5 -4 -4 -4 -4 -4 -4 -4 -3 -3 -3 -3 -2 -1 -1 -1 --------- Run | Scr Mat Min Mat Min Exi Min Mat Fac Low Low Zio Pro Fac Ext Cet Arc Hub Fac Upp Upp Zhi Pro Fac Was Fac Upp Upp War Pro Res Arm Lab Res Acc Com Ac0 Total 77718 | 101 1154 671 2504 703 448 668 5096 1828 1414 1037 1181 1071 987 1517 137 591 1829 5036 1422 2047 219 1307 3514 108 4694 1452 1798 1521 1828 4936 2209 551 1668 5608 13003 1860 Wait 10785 | 3 115 . 166 12 . 27 1543 185 57 7 . . 131 63 1 37 414 527 91 752 5 118 272 . 644 8 467 119 565 1202 214 138 104 931 1857 10 Move 62502 | 71 933 646 2077 672 424 605 3192 1445 1317 985 1165 1054 700 1203 102 447 1197 4020 1303 1274 181 1158 3021 108 3813 1428 1311 1344 1232 3495 1913 370 1489 4496 10569 1742 Hop 96 | . . . . . . . . . . . . . . . . . . 4 . . . . 8 . 11 . . 2 2 14 3 . 12 4 5 31 Pick Up 498 | 4 12 8 40 3 10 1 49 18 1 1 4 1 16 17 6 21 10 52 2 . 5 . 13 . 17 . . 1 1 9 7 9 1 21 128 10 Fast Attach 352 | 7 6 . 14 1 . 2 22 19 2 5 2 1 11 13 3 15 13 43 5 . 10 3 20 . 26 . 7 15 2 22 3 5 4 11 31 9 Attach 244 | . 2 . 24 1 2 1 29 9 . 2 1 1 17 10 5 4 9 33 . . . . 11 . 15 . . . 1 11 4 6 7 10 23 6 Detach 146 | . 1 . 7 . 2 . 20 3 . 1 . . 4 2 1 8 9 18 . . . . 6 . 14 . . 2 1 9 1 6 7 1 21 2 Swap 430 | . 7 . 19 6 . 2 35 30 11 15 2 9 12 30 6 6 13 27 5 7 . 8 15 . 25 7 4 2 7 45 6 5 4 18 35 7 Drop 549 | . 3 1 36 3 10 2 43 33 3 5 6 3 6 23 9 34 18 73 6 . 14 3 20 . 22 . 7 15 2 13 7 9 2 15 93 10 Fire 840 | 16 67 13 106 3 . 20 142 40 22 16 . 2 85 22 2 4 104 137 2 1 . 13 . . . 3 . 1 1 10 1 . . . 7 . Melee 989 | . . . 2 1 . . 9 38 . . 1 . 2 57 2 15 32 99 8 13 4 4 128 . 106 6 2 7 14 106 32 3 38 101 126 33 Ram . | . . . . . . . . . . . . . . . . . . . . . . . . . . . . . . . . . . . . . Kick 1 | . . . . . . . . . . . . . . 1 . . . . . . . . . . . . . . . . . . . . . . Crush 70 | . 8 3 13 1 . 8 12 8 1 . . . 3 . . . 10 3 . . . . . . . . . . . . . . . . . . Escape Stasis 113 | . . . . . . . . . . . . . . 5 . . . . . . . . . . . . . . . . . . . . 108 . Rewire 102 | . . . . . . . . . . . . . . 71 . . . . . . . . . . . . . 13 . . 18 . . . . . Trap 1 | . . . . . . . . . . . . . . . . . . . . . . . . . 1 . . . . . . . . . . . Miscellaneous . | . . . . . . . . . . . . . . . . . . . . . . . . . . . . . . . . . . . . . Route ------- -11/Scrapyard -10/Materials (discovered 5 exits: *Mat x3 / *Min x2) -10/Mines (discovered 2 exits: *Mat x2) -9/Materials (discovered 6 exits: *Mat x3 / *Min / *Sto x2) -9/Mines (discovered 4 exits: *Mat x2 / *Exi / *Zio) -9/Exiles -8/Mines (discovered 2 exits: *Mat x2) -8/Materials (discovered 2 exits: *Fac x2) -7/Factory (discovered 2 exits: *Low x2) -7/Lower Caves -7/Lower Caves (discovered 2 exits: *Fac / *Zio) -7/Zion (discovered 2 exits: [*Dee] / *Pro) -6/Proximity Caves -6/Factory (discovered 6 exits: Fac x2 / Low x2 / *Ext x2) -6/Extension (discovered 3 exits: *Fac x2 / *Cet) -6/Cetus -6/Archives (discovered 3 exits: *Fac / *Hub x2) -6/Hub_04(d) (discovered 4 exits: *Fac x4) -5/Factory (discovered 3 exits: *Fac / *Upp x2) -5/Upper Caves -5/Upper Caves (discovered 2 exits: *Fac / *Zhi) -5/Zhirov -4/Proximity Caves -4/Factory (discovered 4 exits: *Res x4) -4/Waste -4/Factory (discovered 6 exits: Res x4 / *Upp x2) -4/Upper Caves -4/Upper Caves (discovered 2 exits: *Res / *War) -4/Warlord -3/Proximity Caves -3/Research (discovered 6 exits: *Res x3 / *Arm / Qua x2) -3/Armory (discovered 3 exits: Res x2 / *Lab) -3/Lab -2/Research (discovered 5 exits: *Acc x3 / *Tes x2) -1/Access (discovered 2 exits: Sur / *Com) -1/Command (discovered 3 exits: *Sur x2 / *Ac0) -1/Access_0 0b11 Command History --------- Turn | Location | Event 24 | -11/Scrapyard | Discovered new exit (range 16) 177 | -11/Scrapyard | Entered Materials 307 | -10/Materials | Discovered new exit (range 8) 311 | -10/Materials | Build established: Mutant 487 | -10/Materials | Central database locked down 490 | -10/Materials | Discovered new exit (range 16) 1226 | -10/Materials | Discovered new exit (range 6) 1433 | -10/Materials | Repaired Lgt. Treads 1574 | -10/Materials | Core integrity fell below 50% 1705 | -10/Materials | Discovered new exit (range 15) 1928 | -10/Materials | Discovered new exit (range 16) 1961 | -10/Materials | Identified exit to Mines 2357 | -10/Materials | Entered Mines 2550 | -10/Mines | YI-UF0 nonchalantly dropped a Grenade Launcher on the ground 2585 | -10/Mines | Destroyed YI-UF0 2602 | -10/Mines | Found Prototype Launcher 2657 | -10/Mines | Discovered new exit (range 13) 2931 | -10/Mines | Learned location of Storage (-9) 3125 | -10/Mines | Assisted by bots powering up and referring to "LRC-V3" 3266 | -10/Mines | A weapon hastily lodged in a ceiling crevice suddenly fell to the ground 3380 | -10/Mines | Joined a pair of Derelicts in attacking an 0b10 outpost 3561 | -10/Mines | Discovered new exit (range 9) 3963 | -10/Mines | Entered Materials 3963 | -9/Materials | Accompanied by 2 allies 3963 | -9/Materials | Evolved 2 slots: Propulsion x1, Utility x1 4709 | -9/Materials | Discovered new exit (range 14) 4953 | -9/Materials | Lost 5 parts (1p1n2u1w) 5135 | -9/Materials | Discovered new exit (range 9) 5177 | -9/Materials | Discovered new exit (range 8) 5374 | -9/Materials | Discovered new exit (range 3) 5510 | -9/Materials | Build established: Scavenger-Mutant 5706 | -9/Materials | Discovered new exit (range 7) 5711 | -9/Materials | Lost 3 parts (1n1u1w) 5738 | -9/Materials | Discovered new exit (range 9) 6008 | -9/Materials | Identified exit to Storage 6035 | -9/Materials | Identified exit to Materials 8179 | -9/Materials | Identified YI-UF0's Doublenader 8540 | -9/Materials | Entered Mines 8581 | -9/Mines | Found a damaged Exp. Sensor Array with a note attached 8587 | -9/Mines | Found Prototype Device 8587 | -9/Mines | Identified Exp. Sensor Array 8685 | -9/Mines | Learned location of Zion (-7) 8760 | -9/Mines | Deemed a non-threat by the Exiles lab entrance 8871 | -9/Mines | A Derelict revealed a hidden shortcut to a safe place 9113 | -9/Mines | Discovered exit to Materials (range 10) 9295 | -9/Mines | Learned Materials emergency access door positions 9369 | -9/Mines | Found a hidden stash of uninstalled traps 9691 | -9/Mines | Discovered exit to Materials (range 10) 9991 | -9/Mines | Received a Mining Laser from a helpful Derelict 10183 | -9/Mines | Discovered new exit (range 5) 10192 | -9/Mines | Entered Exiles 10192 | -9/Exiles | Accompanied by 1 ally 10224 | -9/Exiles | Discovered new exit (range 15) 10390 | -9/Exiles | Met 8R-AWN 10427 | -9/Exiles | Met EX-HEX 10518 | -9/Exiles | Met EX-DEC 10833 | -9/Exiles | Met EX-BIN 10859 | -9/Exiles | Aligned with FarCom system 10861 | -9/Exiles | Given EX-Vault access code 10924 | -9/Exiles | Opened EX-Vault 10943 | -9/Exiles | Found Superbattery 10999 | -9/Exiles | Warned to stay clear of 0b10 Research branches 11228 | -9/Exiles | Left Exiles lab with Superbattery 11228 | -9/Exiles | Entered Mines 11823 | -8/Mines | Discovered exit to Materials (range 12) 11929 | -8/Mines | Discovered exit to Materials (range 7) 12794 | -8/Mines | Entered Materials 12794 | -8/Materials | Evolved 2 slots: Propulsion x1, Utility x1 13905 | -8/Materials | Lost 3 parts (1p1n1u) 14832 | -8/Materials | Discovered new exit (range 10) 15767 | -8/Materials | Build established: Mutant 15791 | -8/Materials | Discovered new exit (range 4) 16314 | -8/Materials | Build established: Scavenger-Mutant 17279 | -8/Materials | Central database locked down 21126 | -8/Materials | Repaired Broken Exp. Sensor Array 21159 | -8/Materials | Repaired Med. Armor Plating 21180 | -8/Materials | Build established: Hacker-Mutant 22157 | -8/Materials | Build established: Mutant 22728 | -8/Materials | Entered Factory 22728 | -7/Factory | Evolved 2 slots: Utility x2 23173 | -7/Factory | Build established: Hacker-Mutant 23285 | -7/Factory | Fabricated L-31 Rogue (x3) 23367 | -7/Factory | Identified exit to Lower Caves 23739 | -7/Factory | Garrison activated, responded to threat 24210 | -7/Factory | Repaired Broken Arm. Treads 25759 | -7/Factory | Fabricated Imp. Kinecellerator (x1) 26881 | -7/Factory | Entered Lower Caves 26881 | -7/Lower Caves | Accompanied by 3 allies 26899 | -7/Lower Caves | Learned 8 Factory zone layouts 27285 | -7/Lower Caves | Encountered a Warlord checkpoint 27962 | -7/Lower Caves | Attracted the attention of an 0b10 checkpoint 28394 | -7/Lower Caves | Discovered new exit (range 6) 28544 | -7/Lower Caves | Identified exit to Lower Caves 29580 | -7/Lower Caves | Attracted the attention of an 0b10 base 29607 | -7/Lower Caves | Destroyed 7 combat bots 29761 | -7/Lower Caves | Learned Research terminal intel 29761 | -7/Lower Caves | Learned location of 1 exit from Factory 30313 | -7/Lower Caves | Entered another Lower Caves area 30387 | -7/Lower Caves | Discovered new exit (range 8) 31149 | -7/Lower Caves | Build established: Mutant 32503 | -7/Lower Caves | Discovered new exit (range 14) 32855 | -7/Lower Caves | Identified exit to Zion 32858 | -7/Lower Caves | Entered Zion 32944 | -7/Zion | System corruption cleaned by Quarantine Array 33185 | -7/Zion | Discovered new exit (range 11) 33415 | -7/Zion | Learned Factory scanalyzer intel 33945 | -7/Zion | Given the Hacking Drone Bay 34090 | -7/Zion | Acquired unknown access codes intercepted by a Zionite 34162 | -7/Zion | Gained Derelict followers 34457 | -7/Zion | Learned location of Quarantine (-3) 34674 | -7/Zion | Rebuked by Imprinter 34939 | -7/Zion | Opened final containment barrier to the Deep Caves 34974 | -7/Zion | Discovered new exit (range 5) 34979 | -7/Zion | Saw the warning signs outside the Deep Caves entrance 35729 | -7/Zion | Found CR-A16's Pointy Stick 35775 | -7/Zion | Identified exit to Proximity Caves 35788 | -7/Zion | Entered Proximity Caves 35788 | -6/Proximity Caves | Accompanied by 7 allies 36298 | -6/Proximity Caves | Identified exit to Factory 36638 | -6/Proximity Caves | Learned location of Extension (-6) 37745 | -6/Proximity Caves | Spotted B-75 Beast 37758 | -6/Proximity Caves | Allies destroyed B-75 Beast 38446 | -6/Proximity Caves | Entered Factory 38446 | -6/Factory | Accompanied by 4 allies 38446 | -6/Factory | Evolved 2 slots: Utility x2 38447 | -6/Factory | Identified exit to Lower Caves 38447 | -6/Factory | Identified exit to Extension 38448 | -6/Factory | Identified exit to Factory 38450 | -6/Factory | Loaded intel: 4 scanalyzer locations 38579 | -6/Factory | Assembled infested ambush trap array 38691 | -6/Factory | Central database locked down 38810 | -6/Factory | Build established: Hacker-Mutant 39117 | -6/Factory | Fabricated Adv. Hacking Suite (x1) 39295 | -6/Factory | Mak. Hacking Suite fried by hacking feedback 39522 | -6/Factory | Lost 6 parts (3n1u2w) 39683 | -6/Factory | Cargo convoy interrupted 39823 | -6/Factory | Lost 3 parts (1n2u) 40253 | -6/Factory | Build established: Scavenger-Mutant 40424 | -6/Factory | Destroyed 7 combat bots 40639 | -6/Factory | Entered Extension 40669 | -6/Extension | Build established: Hacker-Mutant 41038 | -6/Extension | Lost 7 parts (1p2n2u2w) 41338 | -6/Extension | Core integrity fell below 50% 41401 | -6/Extension | Lost 3 parts (2n1u) 41585 | -6/Extension | Rescued a captive Derelict 41597 | -6/Extension | Rescued a captive Derelict 41598 | -6/Extension | Rescued a captive Derelict 41765 | -6/Extension | Energy Cycler disabled 41765 | -6/Extension | Rescued a captive Derelict 41765 | -6/Extension | Rescued a captive Derelict 41765 | -6/Extension | Rescued a captive Derelict 41765 | -6/Extension | Rescued a captive Derelict 41765 | -6/Extension | Rescued a captive Derelict 41765 | -6/Extension | Rescued a captive Derelict 41766 | -6/Extension | Rescued a captive Derelict 41767 | -6/Extension | Rescued a captive Derelict 41771 | -6/Extension | Rescued a captive Derelict 41773 | -6/Extension | Rescued a captive Derelict 41977 | -6/Extension | Spotted B-75 Beast 41986 | -6/Extension | Spotted B-75 Beast 42024 | -6/Extension | Build established: Scavenger-Mutant 42341 | -6/Extension | Destroyed B-75 Beast 42350 | -6/Extension | Destroyed B-75 Beast 42359 | -6/Extension | Discovered exit to Factory (range 15) 42407 | -6/Extension | Extracted ID and sensor layout for unrecognized location from A7's data core 42864 | -6/Extension | Discovered exit to Factory (range 10) 42866 | -6/Extension | Discovered new exit (range 6) 43417 | -6/Extension | Entered Cetus 43417 | -6/Cetus | Accompanied by 9 allies 43442 | -6/Cetus | Spotted Cetus Guard 43442 | -6/Cetus | Spotted Cetus Guard 43444 | -6/Cetus | Spotted Cetus Guard 43445 | -6/Cetus | Spotted Cetus Guard 43449 | -6/Cetus | Allies destroyed Cetus Guard 43455 | -6/Cetus | Allies destroyed Cetus Guard 43462 | -6/Cetus | Allies destroyed Cetus Guard 43471 | -6/Cetus | Allies destroyed Cetus Guard 43534 | -6/Cetus | Cetus Manufacturing Module disabled 43620 | -6/Cetus | Discovered new exit (range 16) 43651 | -6/Cetus | Entered Archives 43651 | -6/Archives | Accompanied by 5 allies 43869 | -6/Archives | Discovered exit to Factory (range 15) 43944 | -6/Archives | Discovered new exit (range 16) 44024 | -6/Archives | Discovered new exit (range 15) 44792 | -6/Archives | Entered Hub_04(d) 44792 | -6/Hub_04(d) | Accompanied by 1 ally 45646 | -6/Hub_04(d) | Core integrity fell below 20% 46351 | -6/Hub_04(d) | Build established: Wizard-Mutant 47179 | -6/Hub_04(d) | Imp. Hacking Suite fried by hacking feedback 47336 | -6/Hub_04(d) | Network Hub disabled 47466 | -6/Hub_04(d) | Build established: Scavenger-Mutant 47629 | -6/Hub_04(d) | Network Hub disabled 47631 | -6/Hub_04(d) | Disrupted transfer network 47681 | -6/Hub_04(d) | Entered Factory 47681 | -5/Factory | Evolved 2 slots: Propulsion x2 47766 | -5/Factory | Fabricated Adv. Hacking Suite (x1) 48261 | -5/Factory | Fabricated X-67 Chaingunner? 48495 | -5/Factory | Fabricated Tiamat Missile Launcher (x1) 48670 | -5/Factory | Repaired Centrium Heavy Treads 48693 | -5/Factory | Repaired Hvy. Assault Cannon 48715 | -5/Factory | Repaired Arm. Treads 48743 | -5/Factory | Discovered new exit (range 11) 49844 | -5/Factory | Identified exit to Upper Caves 49932 | -5/Factory | Discovered new exit (range 4) 49973 | -5/Factory | Central database locked down 50282 | -5/Factory | Build established: Wizard-Mutant 50685 | -5/Factory | Fabricated Biomechanical Wings (x1) 50761 | -5/Factory | Fabricated Biomechanical Wings? 50850 | -5/Factory | Fabricated Biomechanical Wings? 51075 | -5/Factory | Fabricated Biomechanical Wings? 51158 | -5/Factory | Repaired Imp. System Restoration Module? 51269 | -5/Factory | Fabricated Biomechanical Wings? 51446 | -5/Factory | Fabricated Biomechanical Wings (x1) 52200 | -5/Factory | Repaired Imp. System Restoration Module 52723 | -5/Factory | Repaired Imp. System Restoration Module? 53074 | -5/Factory | Build established: Hacker-Scout 53081 | -5/Factory | First assault squad dispatched 53307 | -5/Factory | Entered Upper Caves 53513 | -5/Upper Caves | Encountered a Warlord checkpoint 53572 | -5/Upper Caves | Discovered new exit (range 4) 53573 | -5/Upper Caves | Identified exit to Upper Caves 53587 | -5/Upper Caves | Found Alien Artifact 53587 | -5/Upper Caves | Identified Dimensional Node Initializer 53587 | -5/Upper Caves | Initialized slip node 53703 | -5/Upper Caves | Spotted B-75 Beast 53705 | -5/Upper Caves | Build established: Hacker-Sprinter 53789 | -5/Upper Caves | Entered another Upper Caves area 54063 | -5/Upper Caves | Discovered new exit (range 8) 54081 | -5/Upper Caves | Identified exit to Factory 54722 | -5/Upper Caves | Learned Factory trap positions 54801 | -5/Upper Caves | Spotted B-75 Beast 54902 | -5/Upper Caves | Discovered new exit (range 9) 54904 | -5/Upper Caves | Identified exit to Zhirov 54913 | -5/Upper Caves | Entered Zhirov 54913 | -5/Zhirov | Discovered new exit (range 3) 54918 | -5/Zhirov | Met Zhirov 54923 | -5/Zhirov | Learned location of Testing (-2) 54923 | -5/Zhirov | Learned location of Command (-1) 54925 | -5/Zhirov | Zhirov requested help retrieving the SGEMP Prototype 54930 | -5/Zhirov | Found Alien Artifact 54930 | -5/Zhirov | Identified Integrated Dissipator 54930 | -5/Zhirov | Installed Integrated Dissipator, increased core heat dissipation (+20) 54939 | -5/Zhirov | Revealed the true nature of CR-A16's Pointy Stick 54988 | -5/Zhirov | Found Alien Artifact 55001 | -5/Zhirov | Identified exit to Proximity Caves 55004 | -5/Zhirov | Entered Proximity Caves 55112 | -4/Proximity Caves | Learned Research security intel 55381 | -4/Proximity Caves | Discovered exit to Factory (range 4) 55388 | -4/Proximity Caves | Learned Research stockpile data 55388 | -4/Proximity Caves | Spotted B-86 Titan 55467 | -4/Proximity Caves | Entered Factory 55467 | -4/Factory | Evolved 2 slots: Utility x2 55468 | -4/Factory | Identified exit to Research 55469 | -4/Factory | Loaded intel: 84 trap records 55547 | -4/Factory | Repaired Tiamat Missile Launcher? 55689 | -4/Factory | Fabricated Exp. Hacking Suite (x1) 55693 | -4/Factory | Fabricated Exp. Hacking Suite? 55831 | -4/Factory | Build established: Wizard-Sprinter 55908 | -4/Factory | Fabricated Exp. Hacking Suite (x1) 55921 | -4/Factory | Spotted B-86 Titan 55931 | -4/Factory | Identified Transdimensional Reconstructor 55977 | -4/Factory | Repaired Imp. System Restoration Module? 56050 | -4/Factory | Fabricated Exp. Utility Shielding (x1) 56215 | -4/Factory | Fabricated Exp. Hacking Suite (x1) 56248 | -4/Factory | Fabricated Exp. Hacking Suite (x1) 56472 | -4/Factory | Spotted B-86 Titan 56589 | -4/Factory | Central database locked down 56808 | -4/Factory | Repaired Exp. Propulsion Shielding 56863 | -4/Factory | Manually triggered Chute Trap 56863 | -4/Factory | Sucked down chute 56863 | -4/Factory | Entered Waste 56878 | -4/Waste | EMP discharged 56880 | -4/Waste | Spotted C-40 Crusher 56881 | -4/Waste | Spotted C-40 Crusher 56882 | -4/Waste | Spotted C-40 Crusher 56883 | -4/Waste | Spotted C-40 Crusher 56886 | -4/Waste | Spotted C-40 Crusher 56886 | -4/Waste | Spotted C-40 Crusher 56887 | -4/Waste | Discovered new exit (range 10) 56891 | -4/Waste | Entered Factory 56911 | -4/Factory | Discovered new exit (range 15) 57098 | -4/Factory | Identified exit to Upper Caves 57213 | -4/Factory | Fabricated Exp. System Shield (x1) 57373 | -4/Factory | Fabricated Exp. System Shield? 57438 | -4/Factory | Fabricated Exp. Melee Analysis Suite? 57454 | -4/Factory | Repaired Imp. System Restoration Module 57483 | -4/Factory | Repaired Mic. Fission Core 57550 | -4/Factory | Repaired Biomechanical Wings 57725 | -4/Factory | Fabricated Exp. Melee Analysis Suite? 57906 | -4/Factory | Spotted B-86 Titan 57956 | -4/Factory | Crushed by falling debris 58065 | -4/Factory | Repaired Imp. System Restoration Module? 58262 | -4/Factory | Destroyed B-86 Titan 58344 | -4/Factory | Repaired Exp. Utility Shielding 58482 | -4/Factory | Fabricated Nanosword? 58538 | -4/Factory | Fabricated Nanosword? 58559 | -4/Factory | Repaired Biomechanical Wings? 58598 | -4/Factory | Repaired Lgt. Fission Core 58602 | -4/Factory | Fabricated Cld. Impulse Thruster? 58641 | -4/Factory | Repaired Exp. Propulsion Shielding 58683 | -4/Factory | Repaired Exp. Utility Shielding? 58833 | -4/Factory | Fabricated Centrium Light Armor Plating? 58911 | -4/Factory | Entered Upper Caves 58912 | -4/Upper Caves | Encountered a Warlord checkpoint 59133 | -4/Upper Caves | Discovered new exit (range 8) 59134 | -4/Upper Caves | Identified exit to Upper Caves 59318 | -4/Upper Caves | Entered another Upper Caves area 59348 | -4/Upper Caves | Discovered exit to Research (range 8) 59457 | -4/Upper Caves | Attracted the attention of an 0b10 checkpoint 59549 | -4/Upper Caves | Discovered new exit (range 14) 60138 | -4/Upper Caves | Identified exit to Warlord 60138 | -4/Upper Caves | Entered Warlord 60155 | -4/Warlord | Discovered new exit (range 9) 60287 | -4/Warlord | Warlord's base attacked by MAIN.C 60300 | -4/Warlord | Found Prototype Energy Gun 60300 | -4/Warlord | Identified Vortex Rifle 60324 | -4/Warlord | Met Warlord 60391 | -4/Warlord | Found Prototype Device 60391 | -4/Warlord | Identified System Purifier 60401 | -4/Warlord | Found Prototype Processor 60401 | -4/Warlord | Identified Exp. Core Analyzer 60406 | -4/Warlord | Found Prototype Hackware 60406 | -4/Warlord | Identified Ghost Barrier 60410 | -4/Warlord | Found Prototype Reactor 60469 | -4/Warlord | Learned Quarantine stockpile data 60470 | -4/Warlord | Learned Factory terminal intel 60512 | -4/Warlord | Warlord forces counterattacked 60618 | -4/Warlord | Spotted Executioner 60669 | -4/Warlord | Identified exit to Proximity Caves 60669 | -4/Warlord | Entered Proximity Caves 61246 | -3/Proximity Caves | Discovered exit to Research (range 11) 61491 | -3/Proximity Caves | Spotted B-86 Titan 61541 | -3/Proximity Caves | Destroyed B-86 Titan 61598 | -3/Proximity Caves | Entered Research 61598 | -3/Research | Evolved 2 slots: Power x1, Propulsion x1 61601 | -3/Research | Loaded intel: 24 terminal locations 61602 | -3/Research | Identified Vortex Chain Reactor 61606 | -3/Research | Identified exit to Armory 61606 | -3/Research | Identified exit to Quarantine 61657 | -3/Research | Found Unknown Device 61657 | -3/Research | Identified Antimissile System 61718 | -3/Research | Spotted B-86 Titan 61719 | -3/Research | Destroyed B-86 Titan 62165 | -3/Research | Fabricated Femtoactuators (x1) 62202 | -3/Research | Fabricated Exp. Phase Shifter? 62246 | -3/Research | Fabricated Exp. Reaction Control System (x1) 62267 | -3/Research | Spotted B-86 Titan 62267 | -3/Research | Destroyed B-86 Titan 62591 | -3/Research | Identified exit to Research 62616 | -3/Research | Repaired Exp. Propulsion Shielding? 62639 | -3/Research | Repaired Exp. Utility Shielding? 62689 | -3/Research | Repaired Biomechanical Wings 62697 | -3/Research | Repaired Nanosword 62724 | -3/Research | Repaired Biomechanical Wings 62731 | -3/Research | Repaired Biomechanical Wings? 62787 | -3/Research | Repaired Mic. Antimatter Reactor 62819 | -3/Research | Repaired Biomechanical Wings 62907 | -3/Research | Repaired Centrium Light Armor Plating 63247 | -3/Research | Repaired Exp. Propulsion Shielding 63289 | -3/Research | Repaired Exp. Utility Shielding 63819 | -3/Research | Repaired Biomechanical Wings? 64017 | -3/Research | Entered Armory 64127 | -3/Armory | Fabricated Adv. Powered Armor? 64644 | -3/Armory | Fabricated Zero-point Reactor? 64698 | -3/Armory | Fabricated Zero-point Reactor (x1) 64705 | -3/Armory | Warped through subspace to slip node 64705 | -3/Armory | Discovered new exit (range 1) 64784 | -3/Armory | Entered Lab 64784 | -3/Lab | Discovered exit to Research (range 9) 64787 | -3/Lab | Hidden lab's door opened automatically 64787 | -3/Lab | Sensor layout match revealed 64835 | -3/Lab | Gained access to the hidden lab's interior 64844 | -3/Lab | Found Alien Artifact 64844 | -3/Lab | Identified Core Expander 64844 | -3/Lab | Installed Core Expander, added new Utility slot 64849 | -3/Lab | Found Alien Artifact 64849 | -3/Lab | Identified Integrated Mediator 64849 | -3/Lab | Installed Integrated Mediator, increased core attachment efficiency. 64857 | -3/Lab | Found Prototype Energy Cannon 64864 | -3/Lab | Found Prototype Hackware 64900 | -3/Lab | Found Prototype Protection 64902 | -3/Lab | Found Prototype Energy Cannon 64902 | -3/Lab | Identified Potential Cannon 64906 | -3/Lab | Unable to decrypt terminal 64909 | -3/Lab | Found Prototype Special Weapon 64909 | -3/Lab | Identified Gui. Remote Datajack 64911 | -3/Lab | Identified Med. Regenerative Plating 64964 | -3/Lab | Identified Deep Network Scanner 64971 | -3/Lab | Found Transdimensional Reconstructor 65051 | -3/Lab | Entered Research 65051 | -2/Research | Warlord forces began assault on 0b10 65051 | -2/Research | Evolved 2 slots: Propulsion x2 65065 | -2/Research | Identified exit to Access 65065 | -2/Research | Identified exit to Testing 65161 | -2/Research | Research machine network offline 65214 | -2/Research | Spotted B-90 Cyclops 65251 | -2/Research | Destroyed B-90 Cyclops 65387 | -2/Research | Spotted Striker 65388 | -2/Research | Spotted Striker 65415 | -2/Research | Borebot progress halted 65467 | -2/Research | Spotted Executioner 65472 | -2/Research | Spotted Striker 65472 | -2/Research | Found Exp. Core Analyzer 65474 | -2/Research | Entered Access 65474 | -1/Access | Evolved 2 slots: Weapon x2 65487 | -1/Access | Identified exit to Command 65550 | -1/Access | Repaired Exp. Propulsion Shielding 65745 | -1/Access | Fabricated Adv. Force Booster (x2) 65788 | -1/Access | Spotted B-99 Colossus 65788 | -1/Access | Destroyed B-99 Colossus 65970 | -1/Access | Spotted B-99 Colossus 65973 | -1/Access | Destroyed B-99 Colossus 66052 | -1/Access | Fabricated Exp. Actuator Array (x1) 66086 | -1/Access | Fabricated Nanosword (x1) 66088 | -1/Access | Found Antimissile System 66150 | -1/Access | Identified exit to Surface 66157 | -1/Access | Spotted B-99 Colossus 66214 | -1/Access | Central database locked down 66614 | -1/Access | Repaired Exp. Propulsion Shielding 66652 | -1/Access | Repaired Cld. Impulse Thruster 66680 | -1/Access | Repaired Exp. Utility Shielding 66708 | -1/Access | Repaired Biomechanical Wings 66746 | -1/Access | Repaired Cld. Impulse Thruster 66784 | -1/Access | Repaired Cld. Impulse Thruster 66924 | -1/Access | Fabricated Nanosword (x1) 66974 | -1/Access | Search patrols dispatched 66986 | -1/Access | Fabricated Exp. Propulsion Shielding (x1) 67185 | -1/Access | Fabricated Exp. Armor Integrity Analyzer (x1) 67358 | -1/Access | Repaired Nanosword 67395 | -1/Access | Repaired Cld. Impulse Thruster 67420 | -1/Access | Entered Command 67532 | -1/Command | Spotted B-99 Colossus 67537 | -1/Command | Destroyed B-99 Colossus 67670 | -1/Command | Search patrols dispatched 67737 | -1/Command | Found Unknown Protection 67737 | -1/Command | Identified Powered Armor 67771 | -1/Command | Repaired Exp. Propulsion Shielding 67793 | -1/Command | Build established: Machinist-Sprinter 67826 | -1/Command | Repaired Cld. Impulse Thruster 67881 | -1/Command | Repaired Cld. Impulse Thruster 67937 | -1/Command | Repaired Cld. Impulse Thruster 68118 | -1/Command | Disengaged cave seal 68119 | -1/Command | Disengaged cave seal 68119 | -1/Command | Welcomed Warlord to Command 68261 | -1/Command | Derelicts emerged from the dark tunnel 68269 | -1/Command | Spotted Striker 68269 | -1/Command | Spotted Alpha 7 68269 | -1/Command | Spotted Executioner 68269 | -1/Command | Spotted Alpha 7 68273 | -1/Command | Spotted Executioner 68277 | -1/Command | Spotted B-99 Colossus 68364 | -1/Command | Spotted M Guard 68380 | -1/Command | Destroyed Alpha 7 68382 | -1/Command | Spotted Combat Programmer 68382 | -1/Command | Spotted Combat Programmer 68387 | -1/Command | Destroyed Combat Programmer 68392 | -1/Command | Destroyed Combat Programmer 68418 | -1/Command | Found Prototype Ballistic Gun 68418 | -1/Command | Identified Multirail 68422 | -1/Command | Spotted B-99 Colossus 68439 | -1/Command | Destroyed B-99 Colossus 68489 | -1/Command | Spotted M Guard 68490 | -1/Command | All MAIN.C guards destroyed 68569 | -1/Command | Warlord commented on Warlord statues 68703 | -1/Command | Met MAIN.C 68711 | -1/Command | Destroyed MAIN.C Shell 68711 | -1/Command | 0b10 Conduit disabled 68713 | -1/Command | MAIN.C activated Command garrisons 68732 | -1/Command | Warlord destroyed during the assault 68732 | -1/Command | Destroyed ZY-L1N 68736 | -1/Command | Destroyed MAIN.C 68739 | -1/Command | Discovered exit to Surface (range 34) 68739 | -1/Command | Discovered exit to Surface (range 80) 68739 | -1/Command | Extracted map data and part IDs from MAIN.C's data core 70094 | -1/Command | Found Exp. System Purifier 70339 | -1/Command | Found Point Singularity Launcher 70630 | -1/Command | Found Exp. Melee Analysis Suite 70632 | -1/Command | Found Zero-point Reactor 70633 | -1/Command | Found Hvy. Regenerative Plating 70670 | -1/Command | Found Omega Cannon 70692 | -1/Command | Found Exp. Core Analyzer 71604 | -1/Command | Build established: Machinist-Mutant 72326 | -1/Command | Warped through subspace to slip node 72326 | -1/Command | Discovered new exit (range 4) 72335 | -1/Command | Entered Access_0 72337 | -1/Access_0 | Met Architect 72354 | -1/Access_0 | Subspace Access Node disabled 72362 | -1/Access_0 | A6 warped into view 72396 | -1/Access_0 | A5 warped into view 72416 | -1/Access_0 | Subspace Access Node disabled 72439 | -1/Access_0 | A4 warped into view 72457 | -1/Access_0 | Subspace Access Node disabled 72469 | -1/Access_0 | Found Integrated Reactor 72469 | -1/Access_0 | Installed Integrated Reactor, increased core energy generation (+10) 72491 | -1/Access_0 | Subspace Access Node disabled 72503 | -1/Access_0 | A3 warped into view 72530 | -1/Access_0 | Singularity Gate disabled 72557 | -1/Access_0 | Found Hpw. Transdimensional Reconstructor 72609 | -1/Access_0 | Destroyed Architect 72610 | -1/Access_0 | Extracted unknown sensor trigger ID from Architect's data core 72617 | -1/Access_0 | Destroyed A3 72625 | -1/Access_0 | Found Prototype Protection 72625 | -1/Access_0 | Identified Centrium Linked Plating 72636 | -1/Access_0 | Destroyed A2 72639 | -1/Access_0 | Core integrity fell below 50% 72639 | -1/Access_0 | Extracted Singularity Gate Test 138-C access codes from A2's data core 72639 | -1/Access_0 | Found Exp. Phase Shifter 72641 | -1/Access_0 | Found Zero-point Reactor 72652 | -1/Access_0 | Core integrity fell below 20% 72652 | -1/Access_0 | Found Hpw. Transdimensional Reconstructor 72652 | -1/Access_0 | Warped through subspace to slip node 72652 | -1/Access_0 | Discovered exit to Surface (range 8) 72653 | -1/Access_0 | Warped through subspace to slip node 72655 | *** | Establishing 0b11! Last Messages --------------- 72642_ A6 follow-up attacks with Enh. Force Lance. 72642_ Nanosword follow-up attack on Enhanced Grunt. 72642_ Enhanced Grunt destroyed. 72642_ Nanosword follow-up attack on A6. 72642_ A6 Exp. Actuator Array severed. 72643_ Acquired 5 matter. 72644_ Nanosword follow-up attack on A6. 72644_ Exp. Phase Shifter destroyed. 72645_ Critical hit (Impale). 72646_ Exp. Armor Integrity Analyzer destroyed. 72646_ Adv. Force Booster destroyed. 72647_ Nanosword follow-up attack on A6. 72649_ A6 follow-up attacks with Enh. Force Lance. 72649_ Nanosword destroyed. 72650_ Exp. Actuator Array destroyed. 72651_ Zero-point Reactor destroyed. 72652_ Acquired Hpw. Transdimensional Reconstructor. 72652_ Warped through subspace, drawn to slip node. 72652_ EXIT=FOUND: SURFACE 72653_ Warped through subspace, drawn to slip node. Map ----- +----------------------------------------------------+ | | | | | | | | | | | | | | | | | | | | | | | | | | | | | | | | | ?????????????????????????????????????????????????? | | ?????????????????????????????????????????????????? | | ?????????????????????????????????????????????????? | | ?????????????????????????????????????????????????? | | ?????????????????????????????????????????????????? | | ?????????????????????????????????????????????????? | | ????????????????????????###??????????????????????? | | ???????????????????????## ##?????????????????????? | | ???????????????????????# #?????????????????????? | | ???????????????????????# @ #?????????????????????? | | ??????????????????????## #?????????????????????? | | ??????????????????????# #?????????????????????? | | ??????????????????????# ##?????????????????????? | | ??????????????????????## #?????????????????????? | | ??????????????????????# #?????????????????????? | | ??????????????????????# ##?????????????????????? | | ??????????????????????# < #?????????????????????? | | ??????????????????????# ##?????????????????????? | | ??????????????????????## #??????????????????????? | | ???????????????????????####??????????????????????? | | ?????????????????????????????????????????????????? | | ?????????????????????????????????????????????????? | | ?????????????????????????????????????????????????? | | ?????????????????????????????????????????????????? | | ?????????????????????????????????????????????????? | | ?????????????????????????????????????????????????? | | ?????????????????????????????????????????????????? | | ?????????????????????????????????????????????????? | | ?????????????????????????????????????????????????? | | ?????????????????????????????????????????????????? | | ?????????????????????????????????????????????????? | | ?????????????????????????????????????????????????? | | ?????????????????????????????????????????????????? | | ?????????????????????????????????????????????????? | +----------------------------------------------------+ Best States ------------- Heat Dissipation 92 Coolant Potential 50 Energy Generation 71 Energy Capacity 1880 Matter Stores 300 Matter Capacity 300 Sight Range 23 Robot Scan Range 20 Terrain Scan Density 10 Jamming Range 16 Cloak Strength 3 Corruption Containment 8 Armor Coverage 1350 Resistance: TH 20 Resistance: EM 25 Propulsion Shielding 90 Utility Shielding 90 Melee Speed Boost 50 Phase Shifting 20 Evasion (%) 102 Melee Accuracy 24 Core Analysis 8 Armor Integrity Analysis 50 Recoil Reduction 6 Energy Filtering 30 Particle Charging 20 Kinecelleration 40 Force Boost 40 Offensive Hacking 89 Defensive Hacking 38 Authchip Count 8 Trap Extractor Capacity 8 Item Schematics ----------------- Flight Unit | -9/Materials | Scanalyzed Visual Processing Unit | -9/Materials | Scanalyzed Heat Sink | -9/Materials | Scanalyzed Hvy. Assault Cannon | -8/Materials | Hacked Exp. Sensor Array | -8/Materials | Scanalyzed Imp. System Restoration Module | -7/Factory | Hacked Beamcaster | -7/Zion | Free Xenon Bombardment Thruster | -7/Zion | Archive Lgt. Fission Core | -7/Zion | Archive Imp. Carbon-fiber Leg | -7/Zion | Archive Hvy. Machine Gun | -7/Zion | Archive Power Maul | -7/Zion | Archive Drone Bay | -7/Zion | Archive Mak. Salvage Targeting Computer | -7/Zion | Archive Point Defense System | -7/Zion | Archive Hvy. Phase Cannon | -7/Zion | Archive Mak. Laser | -7/Zion | Archive Fusion Compressor | -7/Zion | Archive Recalibrator | -7/Zion | Archive Falx | -7/Zion | Archive Hvy. Flak Cannon | -7/Zion | Archive Matter Filter | -7/Zion | Archive Tiamat Missile Launcher | -7/Zion | Archive Adv. Hacking Suite | -6/Factory | Hacked Exp. Propulsion Shielding | -5/Factory | Scanalyzed Biomechanical Wings | -5/Factory | Hacked Adv. Transmission Jammer | -5/Factory | Hacked Scatter Rocket Array | -5/Factory | Hacked Lgt. Antimatter Reactor | -5/Factory | Hacked Com. HERF Cannon | -5/Factory | Hacked Assault Drone Bay | -5/Zhirov | Free Exp. Heat Sink | -5/Zhirov | Free Exp. Optical Array | -5/Zhirov | Free Imp. Arc Thrower | -5/Zhirov | Free Exp. Hacking Suite | -4/Factory | Hacked Exp. Utility Shielding | -4/Factory | Hacked Mni. Smartbomb Launcher | -4/Factory | Hacked Mak. Axe | -4/Factory | Scanalyzed Imp. Fusion Compressor | -4/Factory | Scanalyzed Exp. System Shield | -4/Factory | Hacked Exp. Melee Analysis Suite | -4/Factory | Hacked Adv. Powered Armor | -4/Factory | Hacked Mic. Antimatter Reactor | -4/Factory | Hacked Nanosword | -4/Factory | Hacked Centrium Light Armor Plating | -4/Factory | Hacked Cld. Impulse Thruster | -4/Factory | Hacked Cld. Linear Gravjet | -4/Factory | Hacked Exp. Terrain Scanner | -4/Factory | Hacked Cmb. Linear Gravjet | -4/Factory | Hacked Exp. Terrain Scan Processor | -4/Factory | Hacked Femtoactuators | -3/Research | Hacked Exp. Reaction Control System | -3/Research | Hacked Exp. Phase Shifter | -3/Research | Hacked Exp. Actuator Array | -3/Research | Hacked Zero-point Reactor | -3/Research | Hacked Adv. Quantum Shading Machine | -3/Research | Hacked Exp. Armor Integrity Analyzer | -3/Research | Hacked Exp. Power Amplifier | -3/Research | Hacked Exp. Transmission Jammer | -3/Research | Hacked Enh. Gamma Bomb Array | -3/Research | Hacked Adv. Force Booster | -3/Armory | Hacked Cld. Q-thruster | -1/Access | Hacked Exp. Force Field | -1/Access | Hacked Exp. Thermal Generator | -1/Access | Hacked Vortex Chain Reactor | -1/Access | Hacked Robot Schematics ------------------ Y-45 Defender | -7/Zion | Archive L-41 Fighter | -7/Zion | Archive S-27 Virus | -5/Factory | Hacked Fabricated ------------ L-31 Rogue | x3 | -7/Factory | Preloaded Imp. Kinecellerator | x1 | -7/Factory | Preloaded Adv. Hacking Suite | x1 | -6/Factory Adv. Hacking Suite | x1 | -5/Factory | Authchip X-67 Chaingunner | x2 | -5/Factory | Preloaded Tiamat Missile Launcher | x1 | -5/Factory | Authchip Biomechanical Wings | x1 | -5/Factory | Authchip Biomechanical Wings | x1 | -5/Factory | Authchip Biomechanical Wings | x1 | -5/Factory | Authchip Biomechanical Wings | x1 | -5/Factory | Authchip Biomechanical Wings | x1 | -5/Factory | Authchip Biomechanical Wings | x1 | -5/Factory | Authchip Exp. Hacking Suite | x1 | -4/Factory | Authchip Exp. Hacking Suite | x1 | -4/Factory | Authchip Exp. Hacking Suite | x1 | -4/Factory | Authchip Exp. Utility Shielding | x1 | -4/Factory Exp. Hacking Suite | x1 | -4/Factory | Authchip Exp. Hacking Suite | x1 | -4/Factory | Authchip Exp. System Shield | x1 | -4/Factory | Authchip Exp. System Shield | x1 | -4/Factory | Authchip Exp. Melee Analysis Suite | x1 | -4/Factory | Authchip Exp. Melee Analysis Suite | x1 | -4/Factory | Authchip Nanosword | x1 | -4/Factory | Authchip Nanosword | x1 | -4/Factory | Authchip Cld. Impulse Thruster | x1 | -4/Factory | Authchip Centrium Light Armor Plating | x1 | -4/Factory Femtoactuators | x1 | -3/Research | Authchip Exp. Phase Shifter | x1 | -3/Research | Authchip Exp. Reaction Control System | x1 | -3/Research Adv. Powered Armor | x1 | -3/Armory | Authchip Zero-point Reactor | x1 | -3/Armory | Authchip Zero-point Reactor | x1 | -3/Armory Adv. Force Booster | x2 | -1/Access | Preloaded Exp. Actuator Array | x1 | -1/Access | Authchip Nanosword | x1 | -1/Access | Authchip Nanosword | x1 | -1/Access | Authchip Exp. Propulsion Shielding | x1 | -1/Access | Authchip Exp. Armor Integrity Analyzer | x1 | -1/Access Alien Tech Used ----------------- Dimensional Node Initializer Integrated Dissipator Transdimensional Reconstructor Core Expander Integrated Mediator Integrated Reactor High-powered Transdimensional Reconstructor Achievements -------------- Guerrilla Style Supersonic Challenges ------------ None Game ------ Seed FortressMetafieldWell Manual? 0 Play Time 16:24:47 Cumulative 580.2 hours Start 2022.10.12 @ 17:29:54 End 2022.10.16 @ 23:20:39 Sessions 29 Manual Loads 0 Difficulty Rogue Special Mode None Game No. 56 Rogue 46 Adventurer 5 Explorer 5 Win Type 1 Total 23 Types 6/6/4/0/3/1/2/0/1 Lore% 88 Gallery% 93 Achievement% 83 Wizard Run 0 Options --------- ASCII 0 Keyboard 1 Movement Arrows Keybinds 0 Fullscreen 2 Font 18/SmallcapsGlow Map View 76x50 Tactical HUD 1 Map Filters NONE Filters NONE Steam 1 RUN: 531068a3-146f-4948-b84c-e7eb791b1653